{"text_format":"3","workbook":"xlsx","n_sheets":2,"sheets":["Ders Programı","Ders Listesi"],"not_rendered":{"defined_names":17},"read":"whole","date_system":"1900"}

{"sheet":"Ders Programı","index":0,"n_rows":56,"n_cols":9,"rows_kept":56,"merged":[[0,1,1,5],[0,8,1,8]]}
[null,"DERS PROGRAMI",{"$nulls":4},"PROGRAM BAŞLANGICI","ZAMAN ARALIĞI","Ders Listesi"]
[{"$nulls":6},"08:00:00","15 DK"]
[null,"SAAT","PAZAR","PAZARTESİ","SALI","ÇARŞAMBA","PERŞEMBE","CUMA","CUMARTESİ"]
[null,{"$f":"ProgramBaşlangıcı","v":"08:00:00"},{"$f":"IFERROR(INDEX(DersListesi[],MATCH(SUMPRODUCT((DersListesi[GÜN]=DersProgramı[[#Headers],[PAZAR]])*(ROUNDDOWN($B4,10)>=ROUNDDOWN(DersListesi[BAŞLANGIÇ ZAMANI],10))*($B4<=DersListesi[BİTİŞ ZAMANI]),DersListesi[BENZERSİZ]),DersListesi[BENZERSİZ],0),2),0)","v":0},{"$f":"IFERROR(INDEX(DersListesi[],MATCH(SUMPRODUCT((DersListesi[GÜN]=DersProgramı[[#Headers],[PAZARTESİ]])*(ROUNDDOWN($B4,10)>=ROUNDDOWN(DersListesi[BAŞLANGIÇ ZAMANI],10))*($B4<=DersListesi[BİTİŞ ZAMANI]),DersListesi[BENZERSİZ]),DersListesi[BENZERSİZ],0),2),0)","v":0},{"$f":"IFERROR(INDEX(DersListesi[],MATCH(SUMPRODUCT((DersListesi[GÜN]=DersProgramı[[#Headers],[SALI]])*(ROUNDDOWN($B4,10)>=ROUNDDOWN(DersListesi[BAŞLANGIÇ ZAMANI],10))*($B4<=DersListesi[BİTİŞ ZAMANI]),DersListesi[BENZERSİZ]),DersListesi[BENZERSİZ],0),2),0)","v":0},{"$f":"IFERROR(INDEX(DersListesi[],MATCH(SUMPRODUCT((DersListesi[GÜN]=DersProgramı[[#Headers],[ÇARŞAMBA]])*(ROUNDDOWN($B4,10)>=ROUNDDOWN(DersListesi[BAŞLANGIÇ ZAMANI],10))*($B4<=DersListesi[BİTİŞ ZAMANI]),DersListesi[BENZERSİZ]),DersListesi[BENZERSİZ],0),2),0)","v":0},{"$f":"IFERROR(INDEX(DersListesi[],MATCH(SUMPRODUCT((DersListesi[GÜN]=DersProgramı[[#Headers],[PERŞEMBE]])*(ROUNDDOWN($B4,10)>=ROUNDDOWN(DersListesi[BAŞLANGIÇ ZAMANI],10))*($B4<=DersListesi[BİTİŞ ZAMANI]),DersListesi[BENZERSİZ]),DersListesi[BENZERSİZ],0),2),0)","v":0},{"$f":"IFERROR(INDEX(DersListesi[],MATCH(SUMPRODUCT((DersListesi[GÜN]=DersProgramı[[#Headers],[CUMA]])*(ROUNDDOWN($B4,10)>=ROUNDDOWN(DersListesi[BAŞLANGIÇ ZAMANI],10))*($B4<=DersListesi[BİTİŞ ZAMANI]),DersListesi[BENZERSİZ]),DersListesi[BENZERSİZ],0),2),0)","v":0},{"$f":"IFERROR(INDEX(DersListesi[],MATCH(SUMPRODUCT((DersListesi[GÜN]=DersProgramı[[#Headers],[CUMARTESİ]])*(ROUNDDOWN($B4,10)>=ROUNDDOWN(DersListesi[BAŞLANGIÇ ZAMANI],10))*($B4<=DersListesi[BİTİŞ ZAMANI]),DersListesi[BENZERSİZ]),DersListesi[BENZERSİZ],0),2),0)","v":0}]
[null,{"$f":"B4+Artış","v":"08:15:00"},{"$f":"IFERROR(INDEX(DersListesi[],MATCH(SUMPRODUCT((DersListesi[GÜN]=DersProgramı[[#Headers],[PAZAR]])*(ROUNDDOWN($B5,10)>=ROUNDDOWN(DersListesi[BAŞLANGIÇ ZAMANI],10))*($B5<=DersListesi[BİTİŞ ZAMANI]),DersListesi[BENZERSİZ]),DersListesi[BENZERSİZ],0),2),0)","v":0},{"$f":"IFERROR(INDEX(DersListesi[],MATCH(SUMPRODUCT((DersListesi[GÜN]=DersProgramı[[#Headers],[PAZARTESİ]])*(ROUNDDOWN($B5,10)>=ROUNDDOWN(DersListesi[BAŞLANGIÇ ZAMANI],10))*($B5<=DersListesi[BİTİŞ ZAMANI]),DersListesi[BENZERSİZ]),DersListesi[BENZERSİZ],0),2),0)","v":"MAT-113"},{"$f":"IFERROR(INDEX(DersListesi[],MATCH(SUMPRODUCT((DersListesi[GÜN]=DersProgramı[[#Headers],[SALI]])*(ROUNDDOWN($B5,10)>=ROUNDDOWN(DersListesi[BAŞLANGIÇ ZAMANI],10))*($B5<=DersListesi[BİTİŞ ZAMANI]),DersListesi[BENZERSİZ]),DersListesi[BENZERSİZ],0),2),0)","v":0},{"$f":"IFERROR(INDEX(DersListesi[],MATCH(SUMPRODUCT((DersListesi[GÜN]=DersProgramı[[#Headers],[ÇARŞAMBA]])*(ROUNDDOWN($B5,10)>=ROUNDDOWN(DersListesi[BAŞLANGIÇ ZAMANI],10))*($B5<=DersListesi[BİTİŞ ZAMANI]),DersListesi[BENZERSİZ]),DersListesi[BENZERSİZ],0),2),0)","v":"MAT-113"},{"$f":"IFERROR(INDEX(DersListesi[],MATCH(SUMPRODUCT((DersListesi[GÜN]=DersProgramı[[#Headers],[PERŞEMBE]])*(ROUNDDOWN($B5,10)>=ROUNDDOWN(DersListesi[BAŞLANGIÇ ZAMANI],10))*($B5<=DersListesi[BİTİŞ ZAMANI]),DersListesi[BENZERSİZ]),DersListesi[BENZERSİZ],0),2),0)","v":0},{"$f":"IFERROR(INDEX(DersListesi[],MATCH(SUMPRODUCT((DersListesi[GÜN]=DersProgramı[[#Headers],[CUMA]])*(ROUNDDOWN($B5,10)>=ROUNDDOWN(DersListesi[BAŞLANGIÇ ZAMANI],10))*($B5<=DersListesi[BİTİŞ ZAMANI]),DersListesi[BENZERSİZ]),DersListesi[BENZERSİZ],0),2),0)","v":"MAT-113"},{"$f":"IFERROR(INDEX(DersListesi[],MATCH(SUMPRODUCT((DersListesi[GÜN]=DersProgramı[[#Headers],[CUMARTESİ]])*(ROUNDDOWN($B5,10)>=ROUNDDOWN(DersListesi[BAŞLANGIÇ ZAMANI],10))*($B5<=DersListesi[BİTİŞ ZAMANI]),DersListesi[BENZERSİZ]),DersListesi[BENZERSİZ],0),2),0)","v":0}]
[null,"08:30:00",{"$f":"IFERROR(INDEX(DersListesi[],MATCH(SUMPRODUCT((DersListesi[GÜN]=DersProgramı[[#Headers],[PAZAR]])*(ROUNDDOWN($B6,10)>=ROUNDDOWN(DersListesi[BAŞLANGIÇ ZAMANI],10))*($B6<=DersListesi[BİTİŞ ZAMANI]),DersListesi[BENZERSİZ]),DersListesi[BENZERSİZ],0),2),0)","v":0},{"$f":"IFERROR(INDEX(DersListesi[],MATCH(SUMPRODUCT((DersListesi[GÜN]=DersProgramı[[#Headers],[PAZARTESİ]])*(ROUNDDOWN($B6,10)>=ROUNDDOWN(DersListesi[BAŞLANGIÇ ZAMANI],10))*($B6<=DersListesi[BİTİŞ ZAMANI]),DersListesi[BENZERSİZ]),DersListesi[BENZERSİZ],0),2),0)","v":"MAT-113"},{"$f":"IFERROR(INDEX(DersListesi[],MATCH(SUMPRODUCT((DersListesi[GÜN]=DersProgramı[[#Headers],[SALI]])*(ROUNDDOWN($B6,10)>=ROUNDDOWN(DersListesi[BAŞLANGIÇ ZAMANI],10))*($B6<=DersListesi[BİTİŞ ZAMANI]),DersListesi[BENZERSİZ]),DersListesi[BENZERSİZ],0),2),0)","v":0},{"$f":"IFERROR(INDEX(DersListesi[],MATCH(SUMPRODUCT((DersListesi[GÜN]=DersProgramı[[#Headers],[ÇARŞAMBA]])*(ROUNDDOWN($B6,10)>=ROUNDDOWN(DersListesi[BAŞLANGIÇ ZAMANI],10))*($B6<=DersListesi[BİTİŞ ZAMANI]),DersListesi[BENZERSİZ]),DersListesi[BENZERSİZ],0),2),0)","v":"MAT-113"},{"$f":"IFERROR(INDEX(DersListesi[],MATCH(SUMPRODUCT((DersListesi[GÜN]=DersProgramı[[#Headers],[PERŞEMBE]])*(ROUNDDOWN($B6,10)>=ROUNDDOWN(DersListesi[BAŞLANGIÇ ZAMANI],10))*($B6<=DersListesi[BİTİŞ ZAMANI]),DersListesi[BENZERSİZ]),DersListesi[BENZERSİZ],0),2),0)","v":0},{"$f":"IFERROR(INDEX(DersListesi[],MATCH(SUMPRODUCT((DersListesi[GÜN]=DersProgramı[[#Headers],[CUMA]])*(ROUNDDOWN($B6,10)>=ROUNDDOWN(DersListesi[BAŞLANGIÇ ZAMANI],10))*($B6<=DersListesi[BİTİŞ ZAMANI]),DersListesi[BENZERSİZ]),DersListesi[BENZERSİZ],0),2),0)","v":"MAT-113"},{"$f":"IFERROR(INDEX(DersListesi[],MATCH(SUMPRODUCT((DersListesi[GÜN]=DersProgramı[[#Headers],[CUMARTESİ]])*(ROUNDDOWN($B6,10)>=ROUNDDOWN(DersListesi[BAŞLANGIÇ ZAMANI],10))*($B6<=DersListesi[BİTİŞ ZAMANI]),DersListesi[BENZERSİZ]),DersListesi[BENZERSİZ],0),2),0)","v":0}]
[null,"08:45:00",{"$f":"IFERROR(INDEX(DersListesi[],MATCH(SUMPRODUCT((DersListesi[GÜN]=DersProgramı[[#Headers],[PAZAR]])*(ROUNDDOWN($B7,10)>=ROUNDDOWN(DersListesi[BAŞLANGIÇ ZAMANI],10))*($B7<=DersListesi[BİTİŞ ZAMANI]),DersListesi[BENZERSİZ]),DersListesi[BENZERSİZ],0),2),0)","v":0},{"$f":"IFERROR(INDEX(DersListesi[],MATCH(SUMPRODUCT((DersListesi[GÜN]=DersProgramı[[#Headers],[PAZARTESİ]])*(ROUNDDOWN($B7,10)>=ROUNDDOWN(DersListesi[BAŞLANGIÇ ZAMANI],10))*($B7<=DersListesi[BİTİŞ ZAMANI]),DersListesi[BENZERSİZ]),DersListesi[BENZERSİZ],0),2),0)","v":"MAT-113"},{"$f":"IFERROR(INDEX(DersListesi[],MATCH(SUMPRODUCT((DersListesi[GÜN]=DersProgramı[[#Headers],[SALI]])*(ROUNDDOWN($B7,10)>=ROUNDDOWN(DersListesi[BAŞLANGIÇ ZAMANI],10))*($B7<=DersListesi[BİTİŞ ZAMANI]),DersListesi[BENZERSİZ]),DersListesi[BENZERSİZ],0),2),0)","v":0},{"$f":"IFERROR(INDEX(DersListesi[],MATCH(SUMPRODUCT((DersListesi[GÜN]=DersProgramı[[#Headers],[ÇARŞAMBA]])*(ROUNDDOWN($B7,10)>=ROUNDDOWN(DersListesi[BAŞLANGIÇ ZAMANI],10))*($B7<=DersListesi[BİTİŞ ZAMANI]),DersListesi[BENZERSİZ]),DersListesi[BENZERSİZ],0),2),0)","v":"MAT-113"},{"$f":"IFERROR(INDEX(DersListesi[],MATCH(SUMPRODUCT((DersListesi[GÜN]=DersProgramı[[#Headers],[PERŞEMBE]])*(ROUNDDOWN($B7,10)>=ROUNDDOWN(DersListesi[BAŞLANGIÇ ZAMANI],10))*($B7<=DersListesi[BİTİŞ ZAMANI]),DersListesi[BENZERSİZ]),DersListesi[BENZERSİZ],0),2),0)","v":0},{"$f":"IFERROR(INDEX(DersListesi[],MATCH(SUMPRODUCT((DersListesi[GÜN]=DersProgramı[[#Headers],[CUMA]])*(ROUNDDOWN($B7,10)>=ROUNDDOWN(DersListesi[BAŞLANGIÇ ZAMANI],10))*($B7<=DersListesi[BİTİŞ ZAMANI]),DersListesi[BENZERSİZ]),DersListesi[BENZERSİZ],0),2),0)","v":"MAT-113"},{"$f":"IFERROR(INDEX(DersListesi[],MATCH(SUMPRODUCT((DersListesi[GÜN]=DersProgramı[[#Headers],[CUMARTESİ]])*(ROUNDDOWN($B7,10)>=ROUNDDOWN(DersListesi[BAŞLANGIÇ ZAMANI],10))*($B7<=DersListesi[BİTİŞ ZAMANI]),DersListesi[BENZERSİZ]),DersListesi[BENZERSİZ],0),2),0)","v":0}]
[null,"09:00:00",{"$f":"IFERROR(INDEX(DersListesi[],MATCH(SUMPRODUCT((DersListesi[GÜN]=DersProgramı[[#Headers],[PAZAR]])*(ROUNDDOWN($B8,10)>=ROUNDDOWN(DersListesi[BAŞLANGIÇ ZAMANI],10))*($B8<=DersListesi[BİTİŞ ZAMANI]),DersListesi[BENZERSİZ]),DersListesi[BENZERSİZ],0),2),0)","v":0},{"$f":"IFERROR(INDEX(DersListesi[],MATCH(SUMPRODUCT((DersListesi[GÜN]=DersProgramı[[#Headers],[PAZARTESİ]])*(ROUNDDOWN($B8,10)>=ROUNDDOWN(DersListesi[BAŞLANGIÇ ZAMANI],10))*($B8<=DersListesi[BİTİŞ ZAMANI]),DersListesi[BENZERSİZ]),DersListesi[BENZERSİZ],0),2),0)","v":"MAT-113"},{"$f":"IFERROR(INDEX(DersListesi[],MATCH(SUMPRODUCT((DersListesi[GÜN]=DersProgramı[[#Headers],[SALI]])*(ROUNDDOWN($B8,10)>=ROUNDDOWN(DersListesi[BAŞLANGIÇ ZAMANI],10))*($B8<=DersListesi[BİTİŞ ZAMANI]),DersListesi[BENZERSİZ]),DersListesi[BENZERSİZ],0),2),0)","v":0},{"$f":"IFERROR(INDEX(DersListesi[],MATCH(SUMPRODUCT((DersListesi[GÜN]=DersProgramı[[#Headers],[ÇARŞAMBA]])*(ROUNDDOWN($B8,10)>=ROUNDDOWN(DersListesi[BAŞLANGIÇ ZAMANI],10))*($B8<=DersListesi[BİTİŞ ZAMANI]),DersListesi[BENZERSİZ]),DersListesi[BENZERSİZ],0),2),0)","v":"MAT-113"},{"$f":"IFERROR(INDEX(DersListesi[],MATCH(SUMPRODUCT((DersListesi[GÜN]=DersProgramı[[#Headers],[PERŞEMBE]])*(ROUNDDOWN($B8,10)>=ROUNDDOWN(DersListesi[BAŞLANGIÇ ZAMANI],10))*($B8<=DersListesi[BİTİŞ ZAMANI]),DersListesi[BENZERSİZ]),DersListesi[BENZERSİZ],0),2),0)","v":0},{"$f":"IFERROR(INDEX(DersListesi[],MATCH(SUMPRODUCT((DersListesi[GÜN]=DersProgramı[[#Headers],[CUMA]])*(ROUNDDOWN($B8,10)>=ROUNDDOWN(DersListesi[BAŞLANGIÇ ZAMANI],10))*($B8<=DersListesi[BİTİŞ ZAMANI]),DersListesi[BENZERSİZ]),DersListesi[BENZERSİZ],0),2),0)","v":"MAT-113"},{"$f":"IFERROR(INDEX(DersListesi[],MATCH(SUMPRODUCT((DersListesi[GÜN]=DersProgramı[[#Headers],[CUMARTESİ]])*(ROUNDDOWN($B8,10)>=ROUNDDOWN(DersListesi[BAŞLANGIÇ ZAMANI],10))*($B8<=DersListesi[BİTİŞ ZAMANI]),DersListesi[BENZERSİZ]),DersListesi[BENZERSİZ],0),2),0)","v":0}]
[null,"09:15:00",{"$f":"IFERROR(INDEX(DersListesi[],MATCH(SUMPRODUCT((DersListesi[GÜN]=DersProgramı[[#Headers],[PAZAR]])*(ROUNDDOWN($B9,10)>=ROUNDDOWN(DersListesi[BAŞLANGIÇ ZAMANI],10))*($B9<=DersListesi[BİTİŞ ZAMANI]),DersListesi[BENZERSİZ]),DersListesi[BENZERSİZ],0),2),0)","v":0},{"$f":"IFERROR(INDEX(DersListesi[],MATCH(SUMPRODUCT((DersListesi[GÜN]=DersProgramı[[#Headers],[PAZARTESİ]])*(ROUNDDOWN($B9,10)>=ROUNDDOWN(DersListesi[BAŞLANGIÇ ZAMANI],10))*($B9<=DersListesi[BİTİŞ ZAMANI]),DersListesi[BENZERSİZ]),DersListesi[BENZERSİZ],0),2),0)","v":"MAT-113"},{"$f":"IFERROR(INDEX(DersListesi[],MATCH(SUMPRODUCT((DersListesi[GÜN]=DersProgramı[[#Headers],[SALI]])*(ROUNDDOWN($B9,10)>=ROUNDDOWN(DersListesi[BAŞLANGIÇ ZAMANI],10))*($B9<=DersListesi[BİTİŞ ZAMANI]),DersListesi[BENZERSİZ]),DersListesi[BENZERSİZ],0),2),0)","v":0},{"$f":"IFERROR(INDEX(DersListesi[],MATCH(SUMPRODUCT((DersListesi[GÜN]=DersProgramı[[#Headers],[ÇARŞAMBA]])*(ROUNDDOWN($B9,10)>=ROUNDDOWN(DersListesi[BAŞLANGIÇ ZAMANI],10))*($B9<=DersListesi[BİTİŞ ZAMANI]),DersListesi[BENZERSİZ]),DersListesi[BENZERSİZ],0),2),0)","v":"MAT-113"},{"$f":"IFERROR(INDEX(DersListesi[],MATCH(SUMPRODUCT((DersListesi[GÜN]=DersProgramı[[#Headers],[PERŞEMBE]])*(ROUNDDOWN($B9,10)>=ROUNDDOWN(DersListesi[BAŞLANGIÇ ZAMANI],10))*($B9<=DersListesi[BİTİŞ ZAMANI]),DersListesi[BENZERSİZ]),DersListesi[BENZERSİZ],0),2),0)","v":0},{"$f":"IFERROR(INDEX(DersListesi[],MATCH(SUMPRODUCT((DersListesi[GÜN]=DersProgramı[[#Headers],[CUMA]])*(ROUNDDOWN($B9,10)>=ROUNDDOWN(DersListesi[BAŞLANGIÇ ZAMANI],10))*($B9<=DersListesi[BİTİŞ ZAMANI]),DersListesi[BENZERSİZ]),DersListesi[BENZERSİZ],0),2),0)","v":"MAT-113"},{"$f":"IFERROR(INDEX(DersListesi[],MATCH(SUMPRODUCT((DersListesi[GÜN]=DersProgramı[[#Headers],[CUMARTESİ]])*(ROUNDDOWN($B9,10)>=ROUNDDOWN(DersListesi[BAŞLANGIÇ ZAMANI],10))*($B9<=DersListesi[BİTİŞ ZAMANI]),DersListesi[BENZERSİZ]),DersListesi[BENZERSİZ],0),2),0)","v":0}]
[null,"09:30:00",{"$f":"IFERROR(INDEX(DersListesi[],MATCH(SUMPRODUCT((DersListesi[GÜN]=DersProgramı[[#Headers],[PAZAR]])*(ROUNDDOWN($B10,10)>=ROUNDDOWN(DersListesi[BAŞLANGIÇ ZAMANI],10))*($B10<=DersListesi[BİTİŞ ZAMANI]),DersListesi[BENZERSİZ]),DersListesi[BENZERSİZ],0),2),0)","v":0},{"$f":"IFERROR(INDEX(DersListesi[],MATCH(SUMPRODUCT((DersListesi[GÜN]=DersProgramı[[#Headers],[PAZARTESİ]])*(ROUNDDOWN($B10,10)>=ROUNDDOWN(DersListesi[BAŞLANGIÇ ZAMANI],10))*($B10<=DersListesi[BİTİŞ ZAMANI]),DersListesi[BENZERSİZ]),DersListesi[BENZERSİZ],0),2),0)","v":0},{"$f":"IFERROR(INDEX(DersListesi[],MATCH(SUMPRODUCT((DersListesi[GÜN]=DersProgramı[[#Headers],[SALI]])*(ROUNDDOWN($B10,10)>=ROUNDDOWN(DersListesi[BAŞLANGIÇ ZAMANI],10))*($B10<=DersListesi[BİTİŞ ZAMANI]),DersListesi[BENZERSİZ]),DersListesi[BENZERSİZ],0),2),0)","v":0},{"$f":"IFERROR(INDEX(DersListesi[],MATCH(SUMPRODUCT((DersListesi[GÜN]=DersProgramı[[#Headers],[ÇARŞAMBA]])*(ROUNDDOWN($B10,10)>=ROUNDDOWN(DersListesi[BAŞLANGIÇ ZAMANI],10))*($B10<=DersListesi[BİTİŞ ZAMANI]),DersListesi[BENZERSİZ]),DersListesi[BENZERSİZ],0),2),0)","v":0},{"$f":"IFERROR(INDEX(DersListesi[],MATCH(SUMPRODUCT((DersListesi[GÜN]=DersProgramı[[#Headers],[PERŞEMBE]])*(ROUNDDOWN($B10,10)>=ROUNDDOWN(DersListesi[BAŞLANGIÇ ZAMANI],10))*($B10<=DersListesi[BİTİŞ ZAMANI]),DersListesi[BENZERSİZ]),DersListesi[BENZERSİZ],0),2),0)","v":0},{"$f":"IFERROR(INDEX(DersListesi[],MATCH(SUMPRODUCT((DersListesi[GÜN]=DersProgramı[[#Headers],[CUMA]])*(ROUNDDOWN($B10,10)>=ROUNDDOWN(DersListesi[BAŞLANGIÇ ZAMANI],10))*($B10<=DersListesi[BİTİŞ ZAMANI]),DersListesi[BENZERSİZ]),DersListesi[BENZERSİZ],0),2),0)","v":0},{"$f":"IFERROR(INDEX(DersListesi[],MATCH(SUMPRODUCT((DersListesi[GÜN]=DersProgramı[[#Headers],[CUMARTESİ]])*(ROUNDDOWN($B10,10)>=ROUNDDOWN(DersListesi[BAŞLANGIÇ ZAMANI],10))*($B10<=DersListesi[BİTİŞ ZAMANI]),DersListesi[BENZERSİZ]),DersListesi[BENZERSİZ],0),2),0)","v":0}]
[null,"09:45:00",{"$f":"IFERROR(INDEX(DersListesi[],MATCH(SUMPRODUCT((DersListesi[GÜN]=DersProgramı[[#Headers],[PAZAR]])*(ROUNDDOWN($B11,10)>=ROUNDDOWN(DersListesi[BAŞLANGIÇ ZAMANI],10))*($B11<=DersListesi[BİTİŞ ZAMANI]),DersListesi[BENZERSİZ]),DersListesi[BENZERSİZ],0),2),0)","v":0},{"$f":"IFERROR(INDEX(DersListesi[],MATCH(SUMPRODUCT((DersListesi[GÜN]=DersProgramı[[#Headers],[PAZARTESİ]])*(ROUNDDOWN($B11,10)>=ROUNDDOWN(DersListesi[BAŞLANGIÇ ZAMANI],10))*($B11<=DersListesi[BİTİŞ ZAMANI]),DersListesi[BENZERSİZ]),DersListesi[BENZERSİZ],0),2),0)","v":0},{"$f":"IFERROR(INDEX(DersListesi[],MATCH(SUMPRODUCT((DersListesi[GÜN]=DersProgramı[[#Headers],[SALI]])*(ROUNDDOWN($B11,10)>=ROUNDDOWN(DersListesi[BAŞLANGIÇ ZAMANI],10))*($B11<=DersListesi[BİTİŞ ZAMANI]),DersListesi[BENZERSİZ]),DersListesi[BENZERSİZ],0),2),0)","v":0},{"$f":"IFERROR(INDEX(DersListesi[],MATCH(SUMPRODUCT((DersListesi[GÜN]=DersProgramı[[#Headers],[ÇARŞAMBA]])*(ROUNDDOWN($B11,10)>=ROUNDDOWN(DersListesi[BAŞLANGIÇ ZAMANI],10))*($B11<=DersListesi[BİTİŞ ZAMANI]),DersListesi[BENZERSİZ]),DersListesi[BENZERSİZ],0),2),0)","v":0},{"$f":"IFERROR(INDEX(DersListesi[],MATCH(SUMPRODUCT((DersListesi[GÜN]=DersProgramı[[#Headers],[PERŞEMBE]])*(ROUNDDOWN($B11,10)>=ROUNDDOWN(DersListesi[BAŞLANGIÇ ZAMANI],10))*($B11<=DersListesi[BİTİŞ ZAMANI]),DersListesi[BENZERSİZ]),DersListesi[BENZERSİZ],0),2),0)","v":0},{"$f":"IFERROR(INDEX(DersListesi[],MATCH(SUMPRODUCT((DersListesi[GÜN]=DersProgramı[[#Headers],[CUMA]])*(ROUNDDOWN($B11,10)>=ROUNDDOWN(DersListesi[BAŞLANGIÇ ZAMANI],10))*($B11<=DersListesi[BİTİŞ ZAMANI]),DersListesi[BENZERSİZ]),DersListesi[BENZERSİZ],0),2),0)","v":0},{"$f":"IFERROR(INDEX(DersListesi[],MATCH(SUMPRODUCT((DersListesi[GÜN]=DersProgramı[[#Headers],[CUMARTESİ]])*(ROUNDDOWN($B11,10)>=ROUNDDOWN(DersListesi[BAŞLANGIÇ ZAMANI],10))*($B11<=DersListesi[BİTİŞ ZAMANI]),DersListesi[BENZERSİZ]),DersListesi[BENZERSİZ],0),2),0)","v":0}]
[null,"10:00:00",{"$f":"IFERROR(INDEX(DersListesi[],MATCH(SUMPRODUCT((DersListesi[GÜN]=DersProgramı[[#Headers],[PAZAR]])*(ROUNDDOWN($B12,10)>=ROUNDDOWN(DersListesi[BAŞLANGIÇ ZAMANI],10))*($B12<=DersListesi[BİTİŞ ZAMANI]),DersListesi[BENZERSİZ]),DersListesi[BENZERSİZ],0),2),0)","v":0},{"$f":"IFERROR(INDEX(DersListesi[],MATCH(SUMPRODUCT((DersListesi[GÜN]=DersProgramı[[#Headers],[PAZARTESİ]])*(ROUNDDOWN($B12,10)>=ROUNDDOWN(DersListesi[BAŞLANGIÇ ZAMANI],10))*($B12<=DersListesi[BİTİŞ ZAMANI]),DersListesi[BENZERSİZ]),DersListesi[BENZERSİZ],0),2),0)","v":0},{"$f":"IFERROR(INDEX(DersListesi[],MATCH(SUMPRODUCT((DersListesi[GÜN]=DersProgramı[[#Headers],[SALI]])*(ROUNDDOWN($B12,10)>=ROUNDDOWN(DersListesi[BAŞLANGIÇ ZAMANI],10))*($B12<=DersListesi[BİTİŞ ZAMANI]),DersListesi[BENZERSİZ]),DersListesi[BENZERSİZ],0),2),0)","v":0},{"$f":"IFERROR(INDEX(DersListesi[],MATCH(SUMPRODUCT((DersListesi[GÜN]=DersProgramı[[#Headers],[ÇARŞAMBA]])*(ROUNDDOWN($B12,10)>=ROUNDDOWN(DersListesi[BAŞLANGIÇ ZAMANI],10))*($B12<=DersListesi[BİTİŞ ZAMANI]),DersListesi[BENZERSİZ]),DersListesi[BENZERSİZ],0),2),0)","v":0},{"$f":"IFERROR(INDEX(DersListesi[],MATCH(SUMPRODUCT((DersListesi[GÜN]=DersProgramı[[#Headers],[PERŞEMBE]])*(ROUNDDOWN($B12,10)>=ROUNDDOWN(DersListesi[BAŞLANGIÇ ZAMANI],10))*($B12<=DersListesi[BİTİŞ ZAMANI]),DersListesi[BENZERSİZ]),DersListesi[BENZERSİZ],0),2),0)","v":0},{"$f":"IFERROR(INDEX(DersListesi[],MATCH(SUMPRODUCT((DersListesi[GÜN]=DersProgramı[[#Headers],[CUMA]])*(ROUNDDOWN($B12,10)>=ROUNDDOWN(DersListesi[BAŞLANGIÇ ZAMANI],10))*($B12<=DersListesi[BİTİŞ ZAMANI]),DersListesi[BENZERSİZ]),DersListesi[BENZERSİZ],0),2),0)","v":0},{"$f":"IFERROR(INDEX(DersListesi[],MATCH(SUMPRODUCT((DersListesi[GÜN]=DersProgramı[[#Headers],[CUMARTESİ]])*(ROUNDDOWN($B12,10)>=ROUNDDOWN(DersListesi[BAŞLANGIÇ ZAMANI],10))*($B12<=DersListesi[BİTİŞ ZAMANI]),DersListesi[BENZERSİZ]),DersListesi[BENZERSİZ],0),2),0)","v":0}]
[null,"10:15:00",{"$f":"IFERROR(INDEX(DersListesi[],MATCH(SUMPRODUCT((DersListesi[GÜN]=DersProgramı[[#Headers],[PAZAR]])*(ROUNDDOWN($B13,10)>=ROUNDDOWN(DersListesi[BAŞLANGIÇ ZAMANI],10))*($B13<=DersListesi[BİTİŞ ZAMANI]),DersListesi[BENZERSİZ]),DersListesi[BENZERSİZ],0),2),0)","v":0},{"$f":"IFERROR(INDEX(DersListesi[],MATCH(SUMPRODUCT((DersListesi[GÜN]=DersProgramı[[#Headers],[PAZARTESİ]])*(ROUNDDOWN($B13,10)>=ROUNDDOWN(DersListesi[BAŞLANGIÇ ZAMANI],10))*($B13<=DersListesi[BİTİŞ ZAMANI]),DersListesi[BENZERSİZ]),DersListesi[BENZERSİZ],0),2),0)","v":0},{"$f":"IFERROR(INDEX(DersListesi[],MATCH(SUMPRODUCT((DersListesi[GÜN]=DersProgramı[[#Headers],[SALI]])*(ROUNDDOWN($B13,10)>=ROUNDDOWN(DersListesi[BAŞLANGIÇ ZAMANI],10))*($B13<=DersListesi[BİTİŞ ZAMANI]),DersListesi[BENZERSİZ]),DersListesi[BENZERSİZ],0),2),0)","v":0},{"$f":"IFERROR(INDEX(DersListesi[],MATCH(SUMPRODUCT((DersListesi[GÜN]=DersProgramı[[#Headers],[ÇARŞAMBA]])*(ROUNDDOWN($B13,10)>=ROUNDDOWN(DersListesi[BAŞLANGIÇ ZAMANI],10))*($B13<=DersListesi[BİTİŞ ZAMANI]),DersListesi[BENZERSİZ]),DersListesi[BENZERSİZ],0),2),0)","v":0},{"$f":"IFERROR(INDEX(DersListesi[],MATCH(SUMPRODUCT((DersListesi[GÜN]=DersProgramı[[#Headers],[PERŞEMBE]])*(ROUNDDOWN($B13,10)>=ROUNDDOWN(DersListesi[BAŞLANGIÇ ZAMANI],10))*($B13<=DersListesi[BİTİŞ ZAMANI]),DersListesi[BENZERSİZ]),DersListesi[BENZERSİZ],0),2),0)","v":0},{"$f":"IFERROR(INDEX(DersListesi[],MATCH(SUMPRODUCT((DersListesi[GÜN]=DersProgramı[[#Headers],[CUMA]])*(ROUNDDOWN($B13,10)>=ROUNDDOWN(DersListesi[BAŞLANGIÇ ZAMANI],10))*($B13<=DersListesi[BİTİŞ ZAMANI]),DersListesi[BENZERSİZ]),DersListesi[BENZERSİZ],0),2),0)","v":0},{"$f":"IFERROR(INDEX(DersListesi[],MATCH(SUMPRODUCT((DersListesi[GÜN]=DersProgramı[[#Headers],[CUMARTESİ]])*(ROUNDDOWN($B13,10)>=ROUNDDOWN(DersListesi[BAŞLANGIÇ ZAMANI],10))*($B13<=DersListesi[BİTİŞ ZAMANI]),DersListesi[BENZERSİZ]),DersListesi[BENZERSİZ],0),2),0)","v":0}]
[null,"10:30:00",{"$f":"IFERROR(INDEX(DersListesi[],MATCH(SUMPRODUCT((DersListesi[GÜN]=DersProgramı[[#Headers],[PAZAR]])*(ROUNDDOWN($B14,10)>=ROUNDDOWN(DersListesi[BAŞLANGIÇ ZAMANI],10))*($B14<=DersListesi[BİTİŞ ZAMANI]),DersListesi[BENZERSİZ]),DersListesi[BENZERSİZ],0),2),0)","v":0},{"$f":"IFERROR(INDEX(DersListesi[],MATCH(SUMPRODUCT((DersListesi[GÜN]=DersProgramı[[#Headers],[PAZARTESİ]])*(ROUNDDOWN($B14,10)>=ROUNDDOWN(DersListesi[BAŞLANGIÇ ZAMANI],10))*($B14<=DersListesi[BİTİŞ ZAMANI]),DersListesi[BENZERSİZ]),DersListesi[BENZERSİZ],0),2),0)","v":0},{"$f":"IFERROR(INDEX(DersListesi[],MATCH(SUMPRODUCT((DersListesi[GÜN]=DersProgramı[[#Headers],[SALI]])*(ROUNDDOWN($B14,10)>=ROUNDDOWN(DersListesi[BAŞLANGIÇ ZAMANI],10))*($B14<=DersListesi[BİTİŞ ZAMANI]),DersListesi[BENZERSİZ]),DersListesi[BENZERSİZ],0),2),0)","v":0},{"$f":"IFERROR(INDEX(DersListesi[],MATCH(SUMPRODUCT((DersListesi[GÜN]=DersProgramı[[#Headers],[ÇARŞAMBA]])*(ROUNDDOWN($B14,10)>=ROUNDDOWN(DersListesi[BAŞLANGIÇ ZAMANI],10))*($B14<=DersListesi[BİTİŞ ZAMANI]),DersListesi[BENZERSİZ]),DersListesi[BENZERSİZ],0),2),0)","v":0},{"$f":"IFERROR(INDEX(DersListesi[],MATCH(SUMPRODUCT((DersListesi[GÜN]=DersProgramı[[#Headers],[PERŞEMBE]])*(ROUNDDOWN($B14,10)>=ROUNDDOWN(DersListesi[BAŞLANGIÇ ZAMANI],10))*($B14<=DersListesi[BİTİŞ ZAMANI]),DersListesi[BENZERSİZ]),DersListesi[BENZERSİZ],0),2),0)","v":0},{"$f":"IFERROR(INDEX(DersListesi[],MATCH(SUMPRODUCT((DersListesi[GÜN]=DersProgramı[[#Headers],[CUMA]])*(ROUNDDOWN($B14,10)>=ROUNDDOWN(DersListesi[BAŞLANGIÇ ZAMANI],10))*($B14<=DersListesi[BİTİŞ ZAMANI]),DersListesi[BENZERSİZ]),DersListesi[BENZERSİZ],0),2),0)","v":0},{"$f":"IFERROR(INDEX(DersListesi[],MATCH(SUMPRODUCT((DersListesi[GÜN]=DersProgramı[[#Headers],[CUMARTESİ]])*(ROUNDDOWN($B14,10)>=ROUNDDOWN(DersListesi[BAŞLANGIÇ ZAMANI],10))*($B14<=DersListesi[BİTİŞ ZAMANI]),DersListesi[BENZERSİZ]),DersListesi[BENZERSİZ],0),2),0)","v":0}]
[null,"10:45:00",{"$f":"IFERROR(INDEX(DersListesi[],MATCH(SUMPRODUCT((DersListesi[GÜN]=DersProgramı[[#Headers],[PAZAR]])*(ROUNDDOWN($B15,10)>=ROUNDDOWN(DersListesi[BAŞLANGIÇ ZAMANI],10))*($B15<=DersListesi[BİTİŞ ZAMANI]),DersListesi[BENZERSİZ]),DersListesi[BENZERSİZ],0),2),0)","v":0},{"$f":"IFERROR(INDEX(DersListesi[],MATCH(SUMPRODUCT((DersListesi[GÜN]=DersProgramı[[#Headers],[PAZARTESİ]])*(ROUNDDOWN($B15,10)>=ROUNDDOWN(DersListesi[BAŞLANGIÇ ZAMANI],10))*($B15<=DersListesi[BİTİŞ ZAMANI]),DersListesi[BENZERSİZ]),DersListesi[BENZERSİZ],0),2),0)","v":0},{"$f":"IFERROR(INDEX(DersListesi[],MATCH(SUMPRODUCT((DersListesi[GÜN]=DersProgramı[[#Headers],[SALI]])*(ROUNDDOWN($B15,10)>=ROUNDDOWN(DersListesi[BAŞLANGIÇ ZAMANI],10))*($B15<=DersListesi[BİTİŞ ZAMANI]),DersListesi[BENZERSİZ]),DersListesi[BENZERSİZ],0),2),0)","v":0},{"$f":"IFERROR(INDEX(DersListesi[],MATCH(SUMPRODUCT((DersListesi[GÜN]=DersProgramı[[#Headers],[ÇARŞAMBA]])*(ROUNDDOWN($B15,10)>=ROUNDDOWN(DersListesi[BAŞLANGIÇ ZAMANI],10))*($B15<=DersListesi[BİTİŞ ZAMANI]),DersListesi[BENZERSİZ]),DersListesi[BENZERSİZ],0),2),0)","v":0},{"$f":"IFERROR(INDEX(DersListesi[],MATCH(SUMPRODUCT((DersListesi[GÜN]=DersProgramı[[#Headers],[PERŞEMBE]])*(ROUNDDOWN($B15,10)>=ROUNDDOWN(DersListesi[BAŞLANGIÇ ZAMANI],10))*($B15<=DersListesi[BİTİŞ ZAMANI]),DersListesi[BENZERSİZ]),DersListesi[BENZERSİZ],0),2),0)","v":0},{"$f":"IFERROR(INDEX(DersListesi[],MATCH(SUMPRODUCT((DersListesi[GÜN]=DersProgramı[[#Headers],[CUMA]])*(ROUNDDOWN($B15,10)>=ROUNDDOWN(DersListesi[BAŞLANGIÇ ZAMANI],10))*($B15<=DersListesi[BİTİŞ ZAMANI]),DersListesi[BENZERSİZ]),DersListesi[BENZERSİZ],0),2),0)","v":0},{"$f":"IFERROR(INDEX(DersListesi[],MATCH(SUMPRODUCT((DersListesi[GÜN]=DersProgramı[[#Headers],[CUMARTESİ]])*(ROUNDDOWN($B15,10)>=ROUNDDOWN(DersListesi[BAŞLANGIÇ ZAMANI],10))*($B15<=DersListesi[BİTİŞ ZAMANI]),DersListesi[BENZERSİZ]),DersListesi[BENZERSİZ],0),2),0)","v":0}]
[null,"11:00:00",{"$f":"IFERROR(INDEX(DersListesi[],MATCH(SUMPRODUCT((DersListesi[GÜN]=DersProgramı[[#Headers],[PAZAR]])*(ROUNDDOWN($B16,10)>=ROUNDDOWN(DersListesi[BAŞLANGIÇ ZAMANI],10))*($B16<=DersListesi[BİTİŞ ZAMANI]),DersListesi[BENZERSİZ]),DersListesi[BENZERSİZ],0),2),0)","v":0},{"$f":"IFERROR(INDEX(DersListesi[],MATCH(SUMPRODUCT((DersListesi[GÜN]=DersProgramı[[#Headers],[PAZARTESİ]])*(ROUNDDOWN($B16,10)>=ROUNDDOWN(DersListesi[BAŞLANGIÇ ZAMANI],10))*($B16<=DersListesi[BİTİŞ ZAMANI]),DersListesi[BENZERSİZ]),DersListesi[BENZERSİZ],0),2),0)","v":0},{"$f":"IFERROR(INDEX(DersListesi[],MATCH(SUMPRODUCT((DersListesi[GÜN]=DersProgramı[[#Headers],[SALI]])*(ROUNDDOWN($B16,10)>=ROUNDDOWN(DersListesi[BAŞLANGIÇ ZAMANI],10))*($B16<=DersListesi[BİTİŞ ZAMANI]),DersListesi[BENZERSİZ]),DersListesi[BENZERSİZ],0),2),0)","v":"SF-295"},{"$f":"IFERROR(INDEX(DersListesi[],MATCH(SUMPRODUCT((DersListesi[GÜN]=DersProgramı[[#Headers],[ÇARŞAMBA]])*(ROUNDDOWN($B16,10)>=ROUNDDOWN(DersListesi[BAŞLANGIÇ ZAMANI],10))*($B16<=DersListesi[BİTİŞ ZAMANI]),DersListesi[BENZERSİZ]),DersListesi[BENZERSİZ],0),2),0)","v":0},{"$f":"IFERROR(INDEX(DersListesi[],MATCH(SUMPRODUCT((DersListesi[GÜN]=DersProgramı[[#Headers],[PERŞEMBE]])*(ROUNDDOWN($B16,10)>=ROUNDDOWN(DersListesi[BAŞLANGIÇ ZAMANI],10))*($B16<=DersListesi[BİTİŞ ZAMANI]),DersListesi[BENZERSİZ]),DersListesi[BENZERSİZ],0),2),0)","v":"SF-295"},{"$f":"IFERROR(INDEX(DersListesi[],MATCH(SUMPRODUCT((DersListesi[GÜN]=DersProgramı[[#Headers],[CUMA]])*(ROUNDDOWN($B16,10)>=ROUNDDOWN(DersListesi[BAŞLANGIÇ ZAMANI],10))*($B16<=DersListesi[BİTİŞ ZAMANI]),DersListesi[BENZERSİZ]),DersListesi[BENZERSİZ],0),2),0)","v":0},{"$f":"IFERROR(INDEX(DersListesi[],MATCH(SUMPRODUCT((DersListesi[GÜN]=DersProgramı[[#Headers],[CUMARTESİ]])*(ROUNDDOWN($B16,10)>=ROUNDDOWN(DersListesi[BAŞLANGIÇ ZAMANI],10))*($B16<=DersListesi[BİTİŞ ZAMANI]),DersListesi[BENZERSİZ]),DersListesi[BENZERSİZ],0),2),0)","v":0}]
[null,"11:15:00",{"$f":"IFERROR(INDEX(DersListesi[],MATCH(SUMPRODUCT((DersListesi[GÜN]=DersProgramı[[#Headers],[PAZAR]])*(ROUNDDOWN($B17,10)>=ROUNDDOWN(DersListesi[BAŞLANGIÇ ZAMANI],10))*($B17<=DersListesi[BİTİŞ ZAMANI]),DersListesi[BENZERSİZ]),DersListesi[BENZERSİZ],0),2),0)","v":0},{"$f":"IFERROR(INDEX(DersListesi[],MATCH(SUMPRODUCT((DersListesi[GÜN]=DersProgramı[[#Headers],[PAZARTESİ]])*(ROUNDDOWN($B17,10)>=ROUNDDOWN(DersListesi[BAŞLANGIÇ ZAMANI],10))*($B17<=DersListesi[BİTİŞ ZAMANI]),DersListesi[BENZERSİZ]),DersListesi[BENZERSİZ],0),2),0)","v":0},{"$f":"IFERROR(INDEX(DersListesi[],MATCH(SUMPRODUCT((DersListesi[GÜN]=DersProgramı[[#Headers],[SALI]])*(ROUNDDOWN($B17,10)>=ROUNDDOWN(DersListesi[BAŞLANGIÇ ZAMANI],10))*($B17<=DersListesi[BİTİŞ ZAMANI]),DersListesi[BENZERSİZ]),DersListesi[BENZERSİZ],0),2),0)","v":"SF-295"},{"$f":"IFERROR(INDEX(DersListesi[],MATCH(SUMPRODUCT((DersListesi[GÜN]=DersProgramı[[#Headers],[ÇARŞAMBA]])*(ROUNDDOWN($B17,10)>=ROUNDDOWN(DersListesi[BAŞLANGIÇ ZAMANI],10))*($B17<=DersListesi[BİTİŞ ZAMANI]),DersListesi[BENZERSİZ]),DersListesi[BENZERSİZ],0),2),0)","v":0},{"$f":"IFERROR(INDEX(DersListesi[],MATCH(SUMPRODUCT((DersListesi[GÜN]=DersProgramı[[#Headers],[PERŞEMBE]])*(ROUNDDOWN($B17,10)>=ROUNDDOWN(DersListesi[BAŞLANGIÇ ZAMANI],10))*($B17<=DersListesi[BİTİŞ ZAMANI]),DersListesi[BENZERSİZ]),DersListesi[BENZERSİZ],0),2),0)","v":"SF-295"},{"$f":"IFERROR(INDEX(DersListesi[],MATCH(SUMPRODUCT((DersListesi[GÜN]=DersProgramı[[#Headers],[CUMA]])*(ROUNDDOWN($B17,10)>=ROUNDDOWN(DersListesi[BAŞLANGIÇ ZAMANI],10))*($B17<=DersListesi[BİTİŞ ZAMANI]),DersListesi[BENZERSİZ]),DersListesi[BENZERSİZ],0),2),0)","v":0},{"$f":"IFERROR(INDEX(DersListesi[],MATCH(SUMPRODUCT((DersListesi[GÜN]=DersProgramı[[#Headers],[CUMARTESİ]])*(ROUNDDOWN($B17,10)>=ROUNDDOWN(DersListesi[BAŞLANGIÇ ZAMANI],10))*($B17<=DersListesi[BİTİŞ ZAMANI]),DersListesi[BENZERSİZ]),DersListesi[BENZERSİZ],0),2),0)","v":0}]
[null,"11:30:00",{"$f":"IFERROR(INDEX(DersListesi[],MATCH(SUMPRODUCT((DersListesi[GÜN]=DersProgramı[[#Headers],[PAZAR]])*(ROUNDDOWN($B18,10)>=ROUNDDOWN(DersListesi[BAŞLANGIÇ ZAMANI],10))*($B18<=DersListesi[BİTİŞ ZAMANI]),DersListesi[BENZERSİZ]),DersListesi[BENZERSİZ],0),2),0)","v":0},{"$f":"IFERROR(INDEX(DersListesi[],MATCH(SUMPRODUCT((DersListesi[GÜN]=DersProgramı[[#Headers],[PAZARTESİ]])*(ROUNDDOWN($B18,10)>=ROUNDDOWN(DersListesi[BAŞLANGIÇ ZAMANI],10))*($B18<=DersListesi[BİTİŞ ZAMANI]),DersListesi[BENZERSİZ]),DersListesi[BENZERSİZ],0),2),0)","v":0},{"$f":"IFERROR(INDEX(DersListesi[],MATCH(SUMPRODUCT((DersListesi[GÜN]=DersProgramı[[#Headers],[SALI]])*(ROUNDDOWN($B18,10)>=ROUNDDOWN(DersListesi[BAŞLANGIÇ ZAMANI],10))*($B18<=DersListesi[BİTİŞ ZAMANI]),DersListesi[BENZERSİZ]),DersListesi[BENZERSİZ],0),2),0)","v":"SF-295"},{"$f":"IFERROR(INDEX(DersListesi[],MATCH(SUMPRODUCT((DersListesi[GÜN]=DersProgramı[[#Headers],[ÇARŞAMBA]])*(ROUNDDOWN($B18,10)>=ROUNDDOWN(DersListesi[BAŞLANGIÇ ZAMANI],10))*($B18<=DersListesi[BİTİŞ ZAMANI]),DersListesi[BENZERSİZ]),DersListesi[BENZERSİZ],0),2),0)","v":0},{"$f":"IFERROR(INDEX(DersListesi[],MATCH(SUMPRODUCT((DersListesi[GÜN]=DersProgramı[[#Headers],[PERŞEMBE]])*(ROUNDDOWN($B18,10)>=ROUNDDOWN(DersListesi[BAŞLANGIÇ ZAMANI],10))*($B18<=DersListesi[BİTİŞ ZAMANI]),DersListesi[BENZERSİZ]),DersListesi[BENZERSİZ],0),2),0)","v":"SF-295"},{"$f":"IFERROR(INDEX(DersListesi[],MATCH(SUMPRODUCT((DersListesi[GÜN]=DersProgramı[[#Headers],[CUMA]])*(ROUNDDOWN($B18,10)>=ROUNDDOWN(DersListesi[BAŞLANGIÇ ZAMANI],10))*($B18<=DersListesi[BİTİŞ ZAMANI]),DersListesi[BENZERSİZ]),DersListesi[BENZERSİZ],0),2),0)","v":0},{"$f":"IFERROR(INDEX(DersListesi[],MATCH(SUMPRODUCT((DersListesi[GÜN]=DersProgramı[[#Headers],[CUMARTESİ]])*(ROUNDDOWN($B18,10)>=ROUNDDOWN(DersListesi[BAŞLANGIÇ ZAMANI],10))*($B18<=DersListesi[BİTİŞ ZAMANI]),DersListesi[BENZERSİZ]),DersListesi[BENZERSİZ],0),2),0)","v":0}]
[null,"11:45:00",{"$f":"IFERROR(INDEX(DersListesi[],MATCH(SUMPRODUCT((DersListesi[GÜN]=DersProgramı[[#Headers],[PAZAR]])*(ROUNDDOWN($B19,10)>=ROUNDDOWN(DersListesi[BAŞLANGIÇ ZAMANI],10))*($B19<=DersListesi[BİTİŞ ZAMANI]),DersListesi[BENZERSİZ]),DersListesi[BENZERSİZ],0),2),0)","v":0},{"$f":"IFERROR(INDEX(DersListesi[],MATCH(SUMPRODUCT((DersListesi[GÜN]=DersProgramı[[#Headers],[PAZARTESİ]])*(ROUNDDOWN($B19,10)>=ROUNDDOWN(DersListesi[BAŞLANGIÇ ZAMANI],10))*($B19<=DersListesi[BİTİŞ ZAMANI]),DersListesi[BENZERSİZ]),DersListesi[BENZERSİZ],0),2),0)","v":0},{"$f":"IFERROR(INDEX(DersListesi[],MATCH(SUMPRODUCT((DersListesi[GÜN]=DersProgramı[[#Headers],[SALI]])*(ROUNDDOWN($B19,10)>=ROUNDDOWN(DersListesi[BAŞLANGIÇ ZAMANI],10))*($B19<=DersListesi[BİTİŞ ZAMANI]),DersListesi[BENZERSİZ]),DersListesi[BENZERSİZ],0),2),0)","v":"SF-295"},{"$f":"IFERROR(INDEX(DersListesi[],MATCH(SUMPRODUCT((DersListesi[GÜN]=DersProgramı[[#Headers],[ÇARŞAMBA]])*(ROUNDDOWN($B19,10)>=ROUNDDOWN(DersListesi[BAŞLANGIÇ ZAMANI],10))*($B19<=DersListesi[BİTİŞ ZAMANI]),DersListesi[BENZERSİZ]),DersListesi[BENZERSİZ],0),2),0)","v":0},{"$f":"IFERROR(INDEX(DersListesi[],MATCH(SUMPRODUCT((DersListesi[GÜN]=DersProgramı[[#Headers],[PERŞEMBE]])*(ROUNDDOWN($B19,10)>=ROUNDDOWN(DersListesi[BAŞLANGIÇ ZAMANI],10))*($B19<=DersListesi[BİTİŞ ZAMANI]),DersListesi[BENZERSİZ]),DersListesi[BENZERSİZ],0),2),0)","v":"SF-295"},{"$f":"IFERROR(INDEX(DersListesi[],MATCH(SUMPRODUCT((DersListesi[GÜN]=DersProgramı[[#Headers],[CUMA]])*(ROUNDDOWN($B19,10)>=ROUNDDOWN(DersListesi[BAŞLANGIÇ ZAMANI],10))*($B19<=DersListesi[BİTİŞ ZAMANI]),DersListesi[BENZERSİZ]),DersListesi[BENZERSİZ],0),2),0)","v":0},{"$f":"IFERROR(INDEX(DersListesi[],MATCH(SUMPRODUCT((DersListesi[GÜN]=DersProgramı[[#Headers],[CUMARTESİ]])*(ROUNDDOWN($B19,10)>=ROUNDDOWN(DersListesi[BAŞLANGIÇ ZAMANI],10))*($B19<=DersListesi[BİTİŞ ZAMANI]),DersListesi[BENZERSİZ]),DersListesi[BENZERSİZ],0),2),0)","v":0}]
[null,"12:00:00",{"$f":"IFERROR(INDEX(DersListesi[],MATCH(SUMPRODUCT((DersListesi[GÜN]=DersProgramı[[#Headers],[PAZAR]])*(ROUNDDOWN($B20,10)>=ROUNDDOWN(DersListesi[BAŞLANGIÇ ZAMANI],10))*($B20<=DersListesi[BİTİŞ ZAMANI]),DersListesi[BENZERSİZ]),DersListesi[BENZERSİZ],0),2),0)","v":0},{"$f":"IFERROR(INDEX(DersListesi[],MATCH(SUMPRODUCT((DersListesi[GÜN]=DersProgramı[[#Headers],[PAZARTESİ]])*(ROUNDDOWN($B20,10)>=ROUNDDOWN(DersListesi[BAŞLANGIÇ ZAMANI],10))*($B20<=DersListesi[BİTİŞ ZAMANI]),DersListesi[BENZERSİZ]),DersListesi[BENZERSİZ],0),2),0)","v":0},{"$f":"IFERROR(INDEX(DersListesi[],MATCH(SUMPRODUCT((DersListesi[GÜN]=DersProgramı[[#Headers],[SALI]])*(ROUNDDOWN($B20,10)>=ROUNDDOWN(DersListesi[BAŞLANGIÇ ZAMANI],10))*($B20<=DersListesi[BİTİŞ ZAMANI]),DersListesi[BENZERSİZ]),DersListesi[BENZERSİZ],0),2),0)","v":"SF-295"},{"$f":"IFERROR(INDEX(DersListesi[],MATCH(SUMPRODUCT((DersListesi[GÜN]=DersProgramı[[#Headers],[ÇARŞAMBA]])*(ROUNDDOWN($B20,10)>=ROUNDDOWN(DersListesi[BAŞLANGIÇ ZAMANI],10))*($B20<=DersListesi[BİTİŞ ZAMANI]),DersListesi[BENZERSİZ]),DersListesi[BENZERSİZ],0),2),0)","v":0},{"$f":"IFERROR(INDEX(DersListesi[],MATCH(SUMPRODUCT((DersListesi[GÜN]=DersProgramı[[#Headers],[PERŞEMBE]])*(ROUNDDOWN($B20,10)>=ROUNDDOWN(DersListesi[BAŞLANGIÇ ZAMANI],10))*($B20<=DersListesi[BİTİŞ ZAMANI]),DersListesi[BENZERSİZ]),DersListesi[BENZERSİZ],0),2),0)","v":"SF-295"},{"$f":"IFERROR(INDEX(DersListesi[],MATCH(SUMPRODUCT((DersListesi[GÜN]=DersProgramı[[#Headers],[CUMA]])*(ROUNDDOWN($B20,10)>=ROUNDDOWN(DersListesi[BAŞLANGIÇ ZAMANI],10))*($B20<=DersListesi[BİTİŞ ZAMANI]),DersListesi[BENZERSİZ]),DersListesi[BENZERSİZ],0),2),0)","v":0},{"$f":"IFERROR(INDEX(DersListesi[],MATCH(SUMPRODUCT((DersListesi[GÜN]=DersProgramı[[#Headers],[CUMARTESİ]])*(ROUNDDOWN($B20,10)>=ROUNDDOWN(DersListesi[BAŞLANGIÇ ZAMANI],10))*($B20<=DersListesi[BİTİŞ ZAMANI]),DersListesi[BENZERSİZ]),DersListesi[BENZERSİZ],0),2),0)","v":0}]
[null,"12:15:00",{"$f":"IFERROR(INDEX(DersListesi[],MATCH(SUMPRODUCT((DersListesi[GÜN]=DersProgramı[[#Headers],[PAZAR]])*(ROUNDDOWN($B21,10)>=ROUNDDOWN(DersListesi[BAŞLANGIÇ ZAMANI],10))*($B21<=DersListesi[BİTİŞ ZAMANI]),DersListesi[BENZERSİZ]),DersListesi[BENZERSİZ],0),2),0)","v":0},{"$f":"IFERROR(INDEX(DersListesi[],MATCH(SUMPRODUCT((DersListesi[GÜN]=DersProgramı[[#Headers],[PAZARTESİ]])*(ROUNDDOWN($B21,10)>=ROUNDDOWN(DersListesi[BAŞLANGIÇ ZAMANI],10))*($B21<=DersListesi[BİTİŞ ZAMANI]),DersListesi[BENZERSİZ]),DersListesi[BENZERSİZ],0),2),0)","v":0},{"$f":"IFERROR(INDEX(DersListesi[],MATCH(SUMPRODUCT((DersListesi[GÜN]=DersProgramı[[#Headers],[SALI]])*(ROUNDDOWN($B21,10)>=ROUNDDOWN(DersListesi[BAŞLANGIÇ ZAMANI],10))*($B21<=DersListesi[BİTİŞ ZAMANI]),DersListesi[BENZERSİZ]),DersListesi[BENZERSİZ],0),2),0)","v":0},{"$f":"IFERROR(INDEX(DersListesi[],MATCH(SUMPRODUCT((DersListesi[GÜN]=DersProgramı[[#Headers],[ÇARŞAMBA]])*(ROUNDDOWN($B21,10)>=ROUNDDOWN(DersListesi[BAŞLANGIÇ ZAMANI],10))*($B21<=DersListesi[BİTİŞ ZAMANI]),DersListesi[BENZERSİZ]),DersListesi[BENZERSİZ],0),2),0)","v":0},{"$f":"IFERROR(INDEX(DersListesi[],MATCH(SUMPRODUCT((DersListesi[GÜN]=DersProgramı[[#Headers],[PERŞEMBE]])*(ROUNDDOWN($B21,10)>=ROUNDDOWN(DersListesi[BAŞLANGIÇ ZAMANI],10))*($B21<=DersListesi[BİTİŞ ZAMANI]),DersListesi[BENZERSİZ]),DersListesi[BENZERSİZ],0),2),0)","v":0},{"$f":"IFERROR(INDEX(DersListesi[],MATCH(SUMPRODUCT((DersListesi[GÜN]=DersProgramı[[#Headers],[CUMA]])*(ROUNDDOWN($B21,10)>=ROUNDDOWN(DersListesi[BAŞLANGIÇ ZAMANI],10))*($B21<=DersListesi[BİTİŞ ZAMANI]),DersListesi[BENZERSİZ]),DersListesi[BENZERSİZ],0),2),0)","v":0},{"$f":"IFERROR(INDEX(DersListesi[],MATCH(SUMPRODUCT((DersListesi[GÜN]=DersProgramı[[#Headers],[CUMARTESİ]])*(ROUNDDOWN($B21,10)>=ROUNDDOWN(DersListesi[BAŞLANGIÇ ZAMANI],10))*($B21<=DersListesi[BİTİŞ ZAMANI]),DersListesi[BENZERSİZ]),DersListesi[BENZERSİZ],0),2),0)","v":0}]
[null,"12:30:00",{"$f":"IFERROR(INDEX(DersListesi[],MATCH(SUMPRODUCT((DersListesi[GÜN]=DersProgramı[[#Headers],[PAZAR]])*(ROUNDDOWN($B22,10)>=ROUNDDOWN(DersListesi[BAŞLANGIÇ ZAMANI],10))*($B22<=DersListesi[BİTİŞ ZAMANI]),DersListesi[BENZERSİZ]),DersListesi[BENZERSİZ],0),2),0)","v":0},{"$f":"IFERROR(INDEX(DersListesi[],MATCH(SUMPRODUCT((DersListesi[GÜN]=DersProgramı[[#Headers],[PAZARTESİ]])*(ROUNDDOWN($B22,10)>=ROUNDDOWN(DersListesi[BAŞLANGIÇ ZAMANI],10))*($B22<=DersListesi[BİTİŞ ZAMANI]),DersListesi[BENZERSİZ]),DersListesi[BENZERSİZ],0),2),0)","v":0},{"$f":"IFERROR(INDEX(DersListesi[],MATCH(SUMPRODUCT((DersListesi[GÜN]=DersProgramı[[#Headers],[SALI]])*(ROUNDDOWN($B22,10)>=ROUNDDOWN(DersListesi[BAŞLANGIÇ ZAMANI],10))*($B22<=DersListesi[BİTİŞ ZAMANI]),DersListesi[BENZERSİZ]),DersListesi[BENZERSİZ],0),2),0)","v":0},{"$f":"IFERROR(INDEX(DersListesi[],MATCH(SUMPRODUCT((DersListesi[GÜN]=DersProgramı[[#Headers],[ÇARŞAMBA]])*(ROUNDDOWN($B22,10)>=ROUNDDOWN(DersListesi[BAŞLANGIÇ ZAMANI],10))*($B22<=DersListesi[BİTİŞ ZAMANI]),DersListesi[BENZERSİZ]),DersListesi[BENZERSİZ],0),2),0)","v":0},{"$f":"IFERROR(INDEX(DersListesi[],MATCH(SUMPRODUCT((DersListesi[GÜN]=DersProgramı[[#Headers],[PERŞEMBE]])*(ROUNDDOWN($B22,10)>=ROUNDDOWN(DersListesi[BAŞLANGIÇ ZAMANI],10))*($B22<=DersListesi[BİTİŞ ZAMANI]),DersListesi[BENZERSİZ]),DersListesi[BENZERSİZ],0),2),0)","v":0},{"$f":"IFERROR(INDEX(DersListesi[],MATCH(SUMPRODUCT((DersListesi[GÜN]=DersProgramı[[#Headers],[CUMA]])*(ROUNDDOWN($B22,10)>=ROUNDDOWN(DersListesi[BAŞLANGIÇ ZAMANI],10))*($B22<=DersListesi[BİTİŞ ZAMANI]),DersListesi[BENZERSİZ]),DersListesi[BENZERSİZ],0),2),0)","v":0},{"$f":"IFERROR(INDEX(DersListesi[],MATCH(SUMPRODUCT((DersListesi[GÜN]=DersProgramı[[#Headers],[CUMARTESİ]])*(ROUNDDOWN($B22,10)>=ROUNDDOWN(DersListesi[BAŞLANGIÇ ZAMANI],10))*($B22<=DersListesi[BİTİŞ ZAMANI]),DersListesi[BENZERSİZ]),DersListesi[BENZERSİZ],0),2),0)","v":0}]
[null,"12:45:00",{"$f":"IFERROR(INDEX(DersListesi[],MATCH(SUMPRODUCT((DersListesi[GÜN]=DersProgramı[[#Headers],[PAZAR]])*(ROUNDDOWN($B23,10)>=ROUNDDOWN(DersListesi[BAŞLANGIÇ ZAMANI],10))*($B23<=DersListesi[BİTİŞ ZAMANI]),DersListesi[BENZERSİZ]),DersListesi[BENZERSİZ],0),2),0)","v":0},{"$f":"IFERROR(INDEX(DersListesi[],MATCH(SUMPRODUCT((DersListesi[GÜN]=DersProgramı[[#Headers],[PAZARTESİ]])*(ROUNDDOWN($B23,10)>=ROUNDDOWN(DersListesi[BAŞLANGIÇ ZAMANI],10))*($B23<=DersListesi[BİTİŞ ZAMANI]),DersListesi[BENZERSİZ]),DersListesi[BENZERSİZ],0),2),0)","v":0},{"$f":"IFERROR(INDEX(DersListesi[],MATCH(SUMPRODUCT((DersListesi[GÜN]=DersProgramı[[#Headers],[SALI]])*(ROUNDDOWN($B23,10)>=ROUNDDOWN(DersListesi[BAŞLANGIÇ ZAMANI],10))*($B23<=DersListesi[BİTİŞ ZAMANI]),DersListesi[BENZERSİZ]),DersListesi[BENZERSİZ],0),2),0)","v":0},{"$f":"IFERROR(INDEX(DersListesi[],MATCH(SUMPRODUCT((DersListesi[GÜN]=DersProgramı[[#Headers],[ÇARŞAMBA]])*(ROUNDDOWN($B23,10)>=ROUNDDOWN(DersListesi[BAŞLANGIÇ ZAMANI],10))*($B23<=DersListesi[BİTİŞ ZAMANI]),DersListesi[BENZERSİZ]),DersListesi[BENZERSİZ],0),2),0)","v":0},{"$f":"IFERROR(INDEX(DersListesi[],MATCH(SUMPRODUCT((DersListesi[GÜN]=DersProgramı[[#Headers],[PERŞEMBE]])*(ROUNDDOWN($B23,10)>=ROUNDDOWN(DersListesi[BAŞLANGIÇ ZAMANI],10))*($B23<=DersListesi[BİTİŞ ZAMANI]),DersListesi[BENZERSİZ]),DersListesi[BENZERSİZ],0),2),0)","v":0},{"$f":"IFERROR(INDEX(DersListesi[],MATCH(SUMPRODUCT((DersListesi[GÜN]=DersProgramı[[#Headers],[CUMA]])*(ROUNDDOWN($B23,10)>=ROUNDDOWN(DersListesi[BAŞLANGIÇ ZAMANI],10))*($B23<=DersListesi[BİTİŞ ZAMANI]),DersListesi[BENZERSİZ]),DersListesi[BENZERSİZ],0),2),0)","v":0},{"$f":"IFERROR(INDEX(DersListesi[],MATCH(SUMPRODUCT((DersListesi[GÜN]=DersProgramı[[#Headers],[CUMARTESİ]])*(ROUNDDOWN($B23,10)>=ROUNDDOWN(DersListesi[BAŞLANGIÇ ZAMANI],10))*($B23<=DersListesi[BİTİŞ ZAMANI]),DersListesi[BENZERSİZ]),DersListesi[BENZERSİZ],0),2),0)","v":0}]
[null,"13:00:00",{"$f":"IFERROR(INDEX(DersListesi[],MATCH(SUMPRODUCT((DersListesi[GÜN]=DersProgramı[[#Headers],[PAZAR]])*(ROUNDDOWN($B24,10)>=ROUNDDOWN(DersListesi[BAŞLANGIÇ ZAMANI],10))*($B24<=DersListesi[BİTİŞ ZAMANI]),DersListesi[BENZERSİZ]),DersListesi[BENZERSİZ],0),2),0)","v":0},{"$f":"IFERROR(INDEX(DersListesi[],MATCH(SUMPRODUCT((DersListesi[GÜN]=DersProgramı[[#Headers],[PAZARTESİ]])*(ROUNDDOWN($B24,10)>=ROUNDDOWN(DersListesi[BAŞLANGIÇ ZAMANI],10))*($B24<=DersListesi[BİTİŞ ZAMANI]),DersListesi[BENZERSİZ]),DersListesi[BENZERSİZ],0),2),0)","v":"YZ-121"},{"$f":"IFERROR(INDEX(DersListesi[],MATCH(SUMPRODUCT((DersListesi[GÜN]=DersProgramı[[#Headers],[SALI]])*(ROUNDDOWN($B24,10)>=ROUNDDOWN(DersListesi[BAŞLANGIÇ ZAMANI],10))*($B24<=DersListesi[BİTİŞ ZAMANI]),DersListesi[BENZERSİZ]),DersListesi[BENZERSİZ],0),2),0)","v":0},{"$f":"IFERROR(INDEX(DersListesi[],MATCH(SUMPRODUCT((DersListesi[GÜN]=DersProgramı[[#Headers],[ÇARŞAMBA]])*(ROUNDDOWN($B24,10)>=ROUNDDOWN(DersListesi[BAŞLANGIÇ ZAMANI],10))*($B24<=DersListesi[BİTİŞ ZAMANI]),DersListesi[BENZERSİZ]),DersListesi[BENZERSİZ],0),2),0)","v":"YZ-121"},{"$f":"IFERROR(INDEX(DersListesi[],MATCH(SUMPRODUCT((DersListesi[GÜN]=DersProgramı[[#Headers],[PERŞEMBE]])*(ROUNDDOWN($B24,10)>=ROUNDDOWN(DersListesi[BAŞLANGIÇ ZAMANI],10))*($B24<=DersListesi[BİTİŞ ZAMANI]),DersListesi[BENZERSİZ]),DersListesi[BENZERSİZ],0),2),0)","v":0},{"$f":"IFERROR(INDEX(DersListesi[],MATCH(SUMPRODUCT((DersListesi[GÜN]=DersProgramı[[#Headers],[CUMA]])*(ROUNDDOWN($B24,10)>=ROUNDDOWN(DersListesi[BAŞLANGIÇ ZAMANI],10))*($B24<=DersListesi[BİTİŞ ZAMANI]),DersListesi[BENZERSİZ]),DersListesi[BENZERSİZ],0),2),0)","v":0},{"$f":"IFERROR(INDEX(DersListesi[],MATCH(SUMPRODUCT((DersListesi[GÜN]=DersProgramı[[#Headers],[CUMARTESİ]])*(ROUNDDOWN($B24,10)>=ROUNDDOWN(DersListesi[BAŞLANGIÇ ZAMANI],10))*($B24<=DersListesi[BİTİŞ ZAMANI]),DersListesi[BENZERSİZ]),DersListesi[BENZERSİZ],0),2),0)","v":0}]
[null,"13:15:00",{"$f":"IFERROR(INDEX(DersListesi[],MATCH(SUMPRODUCT((DersListesi[GÜN]=DersProgramı[[#Headers],[PAZAR]])*(ROUNDDOWN($B25,10)>=ROUNDDOWN(DersListesi[BAŞLANGIÇ ZAMANI],10))*($B25<=DersListesi[BİTİŞ ZAMANI]),DersListesi[BENZERSİZ]),DersListesi[BENZERSİZ],0),2),0)","v":0},{"$f":"IFERROR(INDEX(DersListesi[],MATCH(SUMPRODUCT((DersListesi[GÜN]=DersProgramı[[#Headers],[PAZARTESİ]])*(ROUNDDOWN($B25,10)>=ROUNDDOWN(DersListesi[BAŞLANGIÇ ZAMANI],10))*($B25<=DersListesi[BİTİŞ ZAMANI]),DersListesi[BENZERSİZ]),DersListesi[BENZERSİZ],0),2),0)","v":"YZ-121"},{"$f":"IFERROR(INDEX(DersListesi[],MATCH(SUMPRODUCT((DersListesi[GÜN]=DersProgramı[[#Headers],[SALI]])*(ROUNDDOWN($B25,10)>=ROUNDDOWN(DersListesi[BAŞLANGIÇ ZAMANI],10))*($B25<=DersListesi[BİTİŞ ZAMANI]),DersListesi[BENZERSİZ]),DersListesi[BENZERSİZ],0),2),0)","v":0},{"$f":"IFERROR(INDEX(DersListesi[],MATCH(SUMPRODUCT((DersListesi[GÜN]=DersProgramı[[#Headers],[ÇARŞAMBA]])*(ROUNDDOWN($B25,10)>=ROUNDDOWN(DersListesi[BAŞLANGIÇ ZAMANI],10))*($B25<=DersListesi[BİTİŞ ZAMANI]),DersListesi[BENZERSİZ]),DersListesi[BENZERSİZ],0),2),0)","v":"YZ-121"},{"$f":"IFERROR(INDEX(DersListesi[],MATCH(SUMPRODUCT((DersListesi[GÜN]=DersProgramı[[#Headers],[PERŞEMBE]])*(ROUNDDOWN($B25,10)>=ROUNDDOWN(DersListesi[BAŞLANGIÇ ZAMANI],10))*($B25<=DersListesi[BİTİŞ ZAMANI]),DersListesi[BENZERSİZ]),DersListesi[BENZERSİZ],0),2),0)","v":0},{"$f":"IFERROR(INDEX(DersListesi[],MATCH(SUMPRODUCT((DersListesi[GÜN]=DersProgramı[[#Headers],[CUMA]])*(ROUNDDOWN($B25,10)>=ROUNDDOWN(DersListesi[BAŞLANGIÇ ZAMANI],10))*($B25<=DersListesi[BİTİŞ ZAMANI]),DersListesi[BENZERSİZ]),DersListesi[BENZERSİZ],0),2),0)","v":0},{"$f":"IFERROR(INDEX(DersListesi[],MATCH(SUMPRODUCT((DersListesi[GÜN]=DersProgramı[[#Headers],[CUMARTESİ]])*(ROUNDDOWN($B25,10)>=ROUNDDOWN(DersListesi[BAŞLANGIÇ ZAMANI],10))*($B25<=DersListesi[BİTİŞ ZAMANI]),DersListesi[BENZERSİZ]),DersListesi[BENZERSİZ],0),2),0)","v":0}]
[null,"13:30:00",{"$f":"IFERROR(INDEX(DersListesi[],MATCH(SUMPRODUCT((DersListesi[GÜN]=DersProgramı[[#Headers],[PAZAR]])*(ROUNDDOWN($B26,10)>=ROUNDDOWN(DersListesi[BAŞLANGIÇ ZAMANI],10))*($B26<=DersListesi[BİTİŞ ZAMANI]),DersListesi[BENZERSİZ]),DersListesi[BENZERSİZ],0),2),0)","v":0},{"$f":"IFERROR(INDEX(DersListesi[],MATCH(SUMPRODUCT((DersListesi[GÜN]=DersProgramı[[#Headers],[PAZARTESİ]])*(ROUNDDOWN($B26,10)>=ROUNDDOWN(DersListesi[BAŞLANGIÇ ZAMANI],10))*($B26<=DersListesi[BİTİŞ ZAMANI]),DersListesi[BENZERSİZ]),DersListesi[BENZERSİZ],0),2),0)","v":"YZ-121"},{"$f":"IFERROR(INDEX(DersListesi[],MATCH(SUMPRODUCT((DersListesi[GÜN]=DersProgramı[[#Headers],[SALI]])*(ROUNDDOWN($B26,10)>=ROUNDDOWN(DersListesi[BAŞLANGIÇ ZAMANI],10))*($B26<=DersListesi[BİTİŞ ZAMANI]),DersListesi[BENZERSİZ]),DersListesi[BENZERSİZ],0),2),0)","v":0},{"$f":"IFERROR(INDEX(DersListesi[],MATCH(SUMPRODUCT((DersListesi[GÜN]=DersProgramı[[#Headers],[ÇARŞAMBA]])*(ROUNDDOWN($B26,10)>=ROUNDDOWN(DersListesi[BAŞLANGIÇ ZAMANI],10))*($B26<=DersListesi[BİTİŞ ZAMANI]),DersListesi[BENZERSİZ]),DersListesi[BENZERSİZ],0),2),0)","v":"YZ-121"},{"$f":"IFERROR(INDEX(DersListesi[],MATCH(SUMPRODUCT((DersListesi[GÜN]=DersProgramı[[#Headers],[PERŞEMBE]])*(ROUNDDOWN($B26,10)>=ROUNDDOWN(DersListesi[BAŞLANGIÇ ZAMANI],10))*($B26<=DersListesi[BİTİŞ ZAMANI]),DersListesi[BENZERSİZ]),DersListesi[BENZERSİZ],0),2),0)","v":0},{"$f":"IFERROR(INDEX(DersListesi[],MATCH(SUMPRODUCT((DersListesi[GÜN]=DersProgramı[[#Headers],[CUMA]])*(ROUNDDOWN($B26,10)>=ROUNDDOWN(DersListesi[BAŞLANGIÇ ZAMANI],10))*($B26<=DersListesi[BİTİŞ ZAMANI]),DersListesi[BENZERSİZ]),DersListesi[BENZERSİZ],0),2),0)","v":0},{"$f":"IFERROR(INDEX(DersListesi[],MATCH(SUMPRODUCT((DersListesi[GÜN]=DersProgramı[[#Headers],[CUMARTESİ]])*(ROUNDDOWN($B26,10)>=ROUNDDOWN(DersListesi[BAŞLANGIÇ ZAMANI],10))*($B26<=DersListesi[BİTİŞ ZAMANI]),DersListesi[BENZERSİZ]),DersListesi[BENZERSİZ],0),2),0)","v":0}]
[null,"13:45:00",{"$f":"IFERROR(INDEX(DersListesi[],MATCH(SUMPRODUCT((DersListesi[GÜN]=DersProgramı[[#Headers],[PAZAR]])*(ROUNDDOWN($B27,10)>=ROUNDDOWN(DersListesi[BAŞLANGIÇ ZAMANI],10))*($B27<=DersListesi[BİTİŞ ZAMANI]),DersListesi[BENZERSİZ]),DersListesi[BENZERSİZ],0),2),0)","v":0},{"$f":"IFERROR(INDEX(DersListesi[],MATCH(SUMPRODUCT((DersListesi[GÜN]=DersProgramı[[#Headers],[PAZARTESİ]])*(ROUNDDOWN($B27,10)>=ROUNDDOWN(DersListesi[BAŞLANGIÇ ZAMANI],10))*($B27<=DersListesi[BİTİŞ ZAMANI]),DersListesi[BENZERSİZ]),DersListesi[BENZERSİZ],0),2),0)","v":"YZ-121"},{"$f":"IFERROR(INDEX(DersListesi[],MATCH(SUMPRODUCT((DersListesi[GÜN]=DersProgramı[[#Headers],[SALI]])*(ROUNDDOWN($B27,10)>=ROUNDDOWN(DersListesi[BAŞLANGIÇ ZAMANI],10))*($B27<=DersListesi[BİTİŞ ZAMANI]),DersListesi[BENZERSİZ]),DersListesi[BENZERSİZ],0),2),0)","v":0},{"$f":"IFERROR(INDEX(DersListesi[],MATCH(SUMPRODUCT((DersListesi[GÜN]=DersProgramı[[#Headers],[ÇARŞAMBA]])*(ROUNDDOWN($B27,10)>=ROUNDDOWN(DersListesi[BAŞLANGIÇ ZAMANI],10))*($B27<=DersListesi[BİTİŞ ZAMANI]),DersListesi[BENZERSİZ]),DersListesi[BENZERSİZ],0),2),0)","v":"YZ-121"},{"$f":"IFERROR(INDEX(DersListesi[],MATCH(SUMPRODUCT((DersListesi[GÜN]=DersProgramı[[#Headers],[PERŞEMBE]])*(ROUNDDOWN($B27,10)>=ROUNDDOWN(DersListesi[BAŞLANGIÇ ZAMANI],10))*($B27<=DersListesi[BİTİŞ ZAMANI]),DersListesi[BENZERSİZ]),DersListesi[BENZERSİZ],0),2),0)","v":0},{"$f":"IFERROR(INDEX(DersListesi[],MATCH(SUMPRODUCT((DersListesi[GÜN]=DersProgramı[[#Headers],[CUMA]])*(ROUNDDOWN($B27,10)>=ROUNDDOWN(DersListesi[BAŞLANGIÇ ZAMANI],10))*($B27<=DersListesi[BİTİŞ ZAMANI]),DersListesi[BENZERSİZ]),DersListesi[BENZERSİZ],0),2),0)","v":0},{"$f":"IFERROR(INDEX(DersListesi[],MATCH(SUMPRODUCT((DersListesi[GÜN]=DersProgramı[[#Headers],[CUMARTESİ]])*(ROUNDDOWN($B27,10)>=ROUNDDOWN(DersListesi[BAŞLANGIÇ ZAMANI],10))*($B27<=DersListesi[BİTİŞ ZAMANI]),DersListesi[BENZERSİZ]),DersListesi[BENZERSİZ],0),2),0)","v":0}]
[null,"14:00:00",{"$f":"IFERROR(INDEX(DersListesi[],MATCH(SUMPRODUCT((DersListesi[GÜN]=DersProgramı[[#Headers],[PAZAR]])*(ROUNDDOWN($B28,10)>=ROUNDDOWN(DersListesi[BAŞLANGIÇ ZAMANI],10))*($B28<=DersListesi[BİTİŞ ZAMANI]),DersListesi[BENZERSİZ]),DersListesi[BENZERSİZ],0),2),0)","v":0},{"$f":"IFERROR(INDEX(DersListesi[],MATCH(SUMPRODUCT((DersListesi[GÜN]=DersProgramı[[#Headers],[PAZARTESİ]])*(ROUNDDOWN($B28,10)>=ROUNDDOWN(DersListesi[BAŞLANGIÇ ZAMANI],10))*($B28<=DersListesi[BİTİŞ ZAMANI]),DersListesi[BENZERSİZ]),DersListesi[BENZERSİZ],0),2),0)","v":"YZ-121"},{"$f":"IFERROR(INDEX(DersListesi[],MATCH(SUMPRODUCT((DersListesi[GÜN]=DersProgramı[[#Headers],[SALI]])*(ROUNDDOWN($B28,10)>=ROUNDDOWN(DersListesi[BAŞLANGIÇ ZAMANI],10))*($B28<=DersListesi[BİTİŞ ZAMANI]),DersListesi[BENZERSİZ]),DersListesi[BENZERSİZ],0),2),0)","v":0},{"$f":"IFERROR(INDEX(DersListesi[],MATCH(SUMPRODUCT((DersListesi[GÜN]=DersProgramı[[#Headers],[ÇARŞAMBA]])*(ROUNDDOWN($B28,10)>=ROUNDDOWN(DersListesi[BAŞLANGIÇ ZAMANI],10))*($B28<=DersListesi[BİTİŞ ZAMANI]),DersListesi[BENZERSİZ]),DersListesi[BENZERSİZ],0),2),0)","v":"YZ-121"},{"$f":"IFERROR(INDEX(DersListesi[],MATCH(SUMPRODUCT((DersListesi[GÜN]=DersProgramı[[#Headers],[PERŞEMBE]])*(ROUNDDOWN($B28,10)>=ROUNDDOWN(DersListesi[BAŞLANGIÇ ZAMANI],10))*($B28<=DersListesi[BİTİŞ ZAMANI]),DersListesi[BENZERSİZ]),DersListesi[BENZERSİZ],0),2),0)","v":0},{"$f":"IFERROR(INDEX(DersListesi[],MATCH(SUMPRODUCT((DersListesi[GÜN]=DersProgramı[[#Headers],[CUMA]])*(ROUNDDOWN($B28,10)>=ROUNDDOWN(DersListesi[BAŞLANGIÇ ZAMANI],10))*($B28<=DersListesi[BİTİŞ ZAMANI]),DersListesi[BENZERSİZ]),DersListesi[BENZERSİZ],0),2),0)","v":0},{"$f":"IFERROR(INDEX(DersListesi[],MATCH(SUMPRODUCT((DersListesi[GÜN]=DersProgramı[[#Headers],[CUMARTESİ]])*(ROUNDDOWN($B28,10)>=ROUNDDOWN(DersListesi[BAŞLANGIÇ ZAMANI],10))*($B28<=DersListesi[BİTİŞ ZAMANI]),DersListesi[BENZERSİZ]),DersListesi[BENZERSİZ],0),2),0)","v":0}]
[null,"14:15:00",{"$f":"IFERROR(INDEX(DersListesi[],MATCH(SUMPRODUCT((DersListesi[GÜN]=DersProgramı[[#Headers],[PAZAR]])*(ROUNDDOWN($B29,10)>=ROUNDDOWN(DersListesi[BAŞLANGIÇ ZAMANI],10))*($B29<=DersListesi[BİTİŞ ZAMANI]),DersListesi[BENZERSİZ]),DersListesi[BENZERSİZ],0),2),0)","v":0},{"$f":"IFERROR(INDEX(DersListesi[],MATCH(SUMPRODUCT((DersListesi[GÜN]=DersProgramı[[#Headers],[PAZARTESİ]])*(ROUNDDOWN($B29,10)>=ROUNDDOWN(DersListesi[BAŞLANGIÇ ZAMANI],10))*($B29<=DersListesi[BİTİŞ ZAMANI]),DersListesi[BENZERSİZ]),DersListesi[BENZERSİZ],0),2),0)","v":0},{"$f":"IFERROR(INDEX(DersListesi[],MATCH(SUMPRODUCT((DersListesi[GÜN]=DersProgramı[[#Headers],[SALI]])*(ROUNDDOWN($B29,10)>=ROUNDDOWN(DersListesi[BAŞLANGIÇ ZAMANI],10))*($B29<=DersListesi[BİTİŞ ZAMANI]),DersListesi[BENZERSİZ]),DersListesi[BENZERSİZ],0),2),0)","v":0},{"$f":"IFERROR(INDEX(DersListesi[],MATCH(SUMPRODUCT((DersListesi[GÜN]=DersProgramı[[#Headers],[ÇARŞAMBA]])*(ROUNDDOWN($B29,10)>=ROUNDDOWN(DersListesi[BAŞLANGIÇ ZAMANI],10))*($B29<=DersListesi[BİTİŞ ZAMANI]),DersListesi[BENZERSİZ]),DersListesi[BENZERSİZ],0),2),0)","v":0},{"$f":"IFERROR(INDEX(DersListesi[],MATCH(SUMPRODUCT((DersListesi[GÜN]=DersProgramı[[#Headers],[PERŞEMBE]])*(ROUNDDOWN($B29,10)>=ROUNDDOWN(DersListesi[BAŞLANGIÇ ZAMANI],10))*($B29<=DersListesi[BİTİŞ ZAMANI]),DersListesi[BENZERSİZ]),DersListesi[BENZERSİZ],0),2),0)","v":0},{"$f":"IFERROR(INDEX(DersListesi[],MATCH(SUMPRODUCT((DersListesi[GÜN]=DersProgramı[[#Headers],[CUMA]])*(ROUNDDOWN($B29,10)>=ROUNDDOWN(DersListesi[BAŞLANGIÇ ZAMANI],10))*($B29<=DersListesi[BİTİŞ ZAMANI]),DersListesi[BENZERSİZ]),DersListesi[BENZERSİZ],0),2),0)","v":0},{"$f":"IFERROR(INDEX(DersListesi[],MATCH(SUMPRODUCT((DersListesi[GÜN]=DersProgramı[[#Headers],[CUMARTESİ]])*(ROUNDDOWN($B29,10)>=ROUNDDOWN(DersListesi[BAŞLANGIÇ ZAMANI],10))*($B29<=DersListesi[BİTİŞ ZAMANI]),DersListesi[BENZERSİZ]),DersListesi[BENZERSİZ],0),2),0)","v":0}]
[null,"14:30:00",{"$f":"IFERROR(INDEX(DersListesi[],MATCH(SUMPRODUCT((DersListesi[GÜN]=DersProgramı[[#Headers],[PAZAR]])*(ROUNDDOWN($B30,10)>=ROUNDDOWN(DersListesi[BAŞLANGIÇ ZAMANI],10))*($B30<=DersListesi[BİTİŞ ZAMANI]),DersListesi[BENZERSİZ]),DersListesi[BENZERSİZ],0),2),0)","v":0},{"$f":"IFERROR(INDEX(DersListesi[],MATCH(SUMPRODUCT((DersListesi[GÜN]=DersProgramı[[#Headers],[PAZARTESİ]])*(ROUNDDOWN($B30,10)>=ROUNDDOWN(DersListesi[BAŞLANGIÇ ZAMANI],10))*($B30<=DersListesi[BİTİŞ ZAMANI]),DersListesi[BENZERSİZ]),DersListesi[BENZERSİZ],0),2),0)","v":0},{"$f":"IFERROR(INDEX(DersListesi[],MATCH(SUMPRODUCT((DersListesi[GÜN]=DersProgramı[[#Headers],[SALI]])*(ROUNDDOWN($B30,10)>=ROUNDDOWN(DersListesi[BAŞLANGIÇ ZAMANI],10))*($B30<=DersListesi[BİTİŞ ZAMANI]),DersListesi[BENZERSİZ]),DersListesi[BENZERSİZ],0),2),0)","v":0},{"$f":"IFERROR(INDEX(DersListesi[],MATCH(SUMPRODUCT((DersListesi[GÜN]=DersProgramı[[#Headers],[ÇARŞAMBA]])*(ROUNDDOWN($B30,10)>=ROUNDDOWN(DersListesi[BAŞLANGIÇ ZAMANI],10))*($B30<=DersListesi[BİTİŞ ZAMANI]),DersListesi[BENZERSİZ]),DersListesi[BENZERSİZ],0),2),0)","v":0},{"$f":"IFERROR(INDEX(DersListesi[],MATCH(SUMPRODUCT((DersListesi[GÜN]=DersProgramı[[#Headers],[PERŞEMBE]])*(ROUNDDOWN($B30,10)>=ROUNDDOWN(DersListesi[BAŞLANGIÇ ZAMANI],10))*($B30<=DersListesi[BİTİŞ ZAMANI]),DersListesi[BENZERSİZ]),DersListesi[BENZERSİZ],0),2),0)","v":0},{"$f":"IFERROR(INDEX(DersListesi[],MATCH(SUMPRODUCT((DersListesi[GÜN]=DersProgramı[[#Headers],[CUMA]])*(ROUNDDOWN($B30,10)>=ROUNDDOWN(DersListesi[BAŞLANGIÇ ZAMANI],10))*($B30<=DersListesi[BİTİŞ ZAMANI]),DersListesi[BENZERSİZ]),DersListesi[BENZERSİZ],0),2),0)","v":0},{"$f":"IFERROR(INDEX(DersListesi[],MATCH(SUMPRODUCT((DersListesi[GÜN]=DersProgramı[[#Headers],[CUMARTESİ]])*(ROUNDDOWN($B30,10)>=ROUNDDOWN(DersListesi[BAŞLANGIÇ ZAMANI],10))*($B30<=DersListesi[BİTİŞ ZAMANI]),DersListesi[BENZERSİZ]),DersListesi[BENZERSİZ],0),2),0)","v":0}]
[null,"14:45:00",{"$f":"IFERROR(INDEX(DersListesi[],MATCH(SUMPRODUCT((DersListesi[GÜN]=DersProgramı[[#Headers],[PAZAR]])*(ROUNDDOWN($B31,10)>=ROUNDDOWN(DersListesi[BAŞLANGIÇ ZAMANI],10))*($B31<=DersListesi[BİTİŞ ZAMANI]),DersListesi[BENZERSİZ]),DersListesi[BENZERSİZ],0),2),0)","v":0},{"$f":"IFERROR(INDEX(DersListesi[],MATCH(SUMPRODUCT((DersListesi[GÜN]=DersProgramı[[#Headers],[PAZARTESİ]])*(ROUNDDOWN($B31,10)>=ROUNDDOWN(DersListesi[BAŞLANGIÇ ZAMANI],10))*($B31<=DersListesi[BİTİŞ ZAMANI]),DersListesi[BENZERSİZ]),DersListesi[BENZERSİZ],0),2),0)","v":0},{"$f":"IFERROR(INDEX(DersListesi[],MATCH(SUMPRODUCT((DersListesi[GÜN]=DersProgramı[[#Headers],[SALI]])*(ROUNDDOWN($B31,10)>=ROUNDDOWN(DersListesi[BAŞLANGIÇ ZAMANI],10))*($B31<=DersListesi[BİTİŞ ZAMANI]),DersListesi[BENZERSİZ]),DersListesi[BENZERSİZ],0),2),0)","v":0},{"$f":"IFERROR(INDEX(DersListesi[],MATCH(SUMPRODUCT((DersListesi[GÜN]=DersProgramı[[#Headers],[ÇARŞAMBA]])*(ROUNDDOWN($B31,10)>=ROUNDDOWN(DersListesi[BAŞLANGIÇ ZAMANI],10))*($B31<=DersListesi[BİTİŞ ZAMANI]),DersListesi[BENZERSİZ]),DersListesi[BENZERSİZ],0),2),0)","v":0},{"$f":"IFERROR(INDEX(DersListesi[],MATCH(SUMPRODUCT((DersListesi[GÜN]=DersProgramı[[#Headers],[PERŞEMBE]])*(ROUNDDOWN($B31,10)>=ROUNDDOWN(DersListesi[BAŞLANGIÇ ZAMANI],10))*($B31<=DersListesi[BİTİŞ ZAMANI]),DersListesi[BENZERSİZ]),DersListesi[BENZERSİZ],0),2),0)","v":0},{"$f":"IFERROR(INDEX(DersListesi[],MATCH(SUMPRODUCT((DersListesi[GÜN]=DersProgramı[[#Headers],[CUMA]])*(ROUNDDOWN($B31,10)>=ROUNDDOWN(DersListesi[BAŞLANGIÇ ZAMANI],10))*($B31<=DersListesi[BİTİŞ ZAMANI]),DersListesi[BENZERSİZ]),DersListesi[BENZERSİZ],0),2),0)","v":0},{"$f":"IFERROR(INDEX(DersListesi[],MATCH(SUMPRODUCT((DersListesi[GÜN]=DersProgramı[[#Headers],[CUMARTESİ]])*(ROUNDDOWN($B31,10)>=ROUNDDOWN(DersListesi[BAŞLANGIÇ ZAMANI],10))*($B31<=DersListesi[BİTİŞ ZAMANI]),DersListesi[BENZERSİZ]),DersListesi[BENZERSİZ],0),2),0)","v":0}]
[null,"15:00:00",{"$f":"IFERROR(INDEX(DersListesi[],MATCH(SUMPRODUCT((DersListesi[GÜN]=DersProgramı[[#Headers],[PAZAR]])*(ROUNDDOWN($B32,10)>=ROUNDDOWN(DersListesi[BAŞLANGIÇ ZAMANI],10))*($B32<=DersListesi[BİTİŞ ZAMANI]),DersListesi[BENZERSİZ]),DersListesi[BENZERSİZ],0),2),0)","v":0},{"$f":"IFERROR(INDEX(DersListesi[],MATCH(SUMPRODUCT((DersListesi[GÜN]=DersProgramı[[#Headers],[PAZARTESİ]])*(ROUNDDOWN($B32,10)>=ROUNDDOWN(DersListesi[BAŞLANGIÇ ZAMANI],10))*($B32<=DersListesi[BİTİŞ ZAMANI]),DersListesi[BENZERSİZ]),DersListesi[BENZERSİZ],0),2),0)","v":0},{"$f":"IFERROR(INDEX(DersListesi[],MATCH(SUMPRODUCT((DersListesi[GÜN]=DersProgramı[[#Headers],[SALI]])*(ROUNDDOWN($B32,10)>=ROUNDDOWN(DersListesi[BAŞLANGIÇ ZAMANI],10))*($B32<=DersListesi[BİTİŞ ZAMANI]),DersListesi[BENZERSİZ]),DersListesi[BENZERSİZ],0),2),0)","v":0},{"$f":"IFERROR(INDEX(DersListesi[],MATCH(SUMPRODUCT((DersListesi[GÜN]=DersProgramı[[#Headers],[ÇARŞAMBA]])*(ROUNDDOWN($B32,10)>=ROUNDDOWN(DersListesi[BAŞLANGIÇ ZAMANI],10))*($B32<=DersListesi[BİTİŞ ZAMANI]),DersListesi[BENZERSİZ]),DersListesi[BENZERSİZ],0),2),0)","v":0},{"$f":"IFERROR(INDEX(DersListesi[],MATCH(SUMPRODUCT((DersListesi[GÜN]=DersProgramı[[#Headers],[PERŞEMBE]])*(ROUNDDOWN($B32,10)>=ROUNDDOWN(DersListesi[BAŞLANGIÇ ZAMANI],10))*($B32<=DersListesi[BİTİŞ ZAMANI]),DersListesi[BENZERSİZ]),DersListesi[BENZERSİZ],0),2),0)","v":0},{"$f":"IFERROR(INDEX(DersListesi[],MATCH(SUMPRODUCT((DersListesi[GÜN]=DersProgramı[[#Headers],[CUMA]])*(ROUNDDOWN($B32,10)>=ROUNDDOWN(DersListesi[BAŞLANGIÇ ZAMANI],10))*($B32<=DersListesi[BİTİŞ ZAMANI]),DersListesi[BENZERSİZ]),DersListesi[BENZERSİZ],0),2),0)","v":0},{"$f":"IFERROR(INDEX(DersListesi[],MATCH(SUMPRODUCT((DersListesi[GÜN]=DersProgramı[[#Headers],[CUMARTESİ]])*(ROUNDDOWN($B32,10)>=ROUNDDOWN(DersListesi[BAŞLANGIÇ ZAMANI],10))*($B32<=DersListesi[BİTİŞ ZAMANI]),DersListesi[BENZERSİZ]),DersListesi[BENZERSİZ],0),2),0)","v":0}]
[null,"15:15:00",{"$f":"IFERROR(INDEX(DersListesi[],MATCH(SUMPRODUCT((DersListesi[GÜN]=DersProgramı[[#Headers],[PAZAR]])*(ROUNDDOWN($B33,10)>=ROUNDDOWN(DersListesi[BAŞLANGIÇ ZAMANI],10))*($B33<=DersListesi[BİTİŞ ZAMANI]),DersListesi[BENZERSİZ]),DersListesi[BENZERSİZ],0),2),0)","v":0},{"$f":"IFERROR(INDEX(DersListesi[],MATCH(SUMPRODUCT((DersListesi[GÜN]=DersProgramı[[#Headers],[PAZARTESİ]])*(ROUNDDOWN($B33,10)>=ROUNDDOWN(DersListesi[BAŞLANGIÇ ZAMANI],10))*($B33<=DersListesi[BİTİŞ ZAMANI]),DersListesi[BENZERSİZ]),DersListesi[BENZERSİZ],0),2),0)","v":0},{"$f":"IFERROR(INDEX(DersListesi[],MATCH(SUMPRODUCT((DersListesi[GÜN]=DersProgramı[[#Headers],[SALI]])*(ROUNDDOWN($B33,10)>=ROUNDDOWN(DersListesi[BAŞLANGIÇ ZAMANI],10))*($B33<=DersListesi[BİTİŞ ZAMANI]),DersListesi[BENZERSİZ]),DersListesi[BENZERSİZ],0),2),0)","v":0},{"$f":"IFERROR(INDEX(DersListesi[],MATCH(SUMPRODUCT((DersListesi[GÜN]=DersProgramı[[#Headers],[ÇARŞAMBA]])*(ROUNDDOWN($B33,10)>=ROUNDDOWN(DersListesi[BAŞLANGIÇ ZAMANI],10))*($B33<=DersListesi[BİTİŞ ZAMANI]),DersListesi[BENZERSİZ]),DersListesi[BENZERSİZ],0),2),0)","v":0},{"$f":"IFERROR(INDEX(DersListesi[],MATCH(SUMPRODUCT((DersListesi[GÜN]=DersProgramı[[#Headers],[PERŞEMBE]])*(ROUNDDOWN($B33,10)>=ROUNDDOWN(DersListesi[BAŞLANGIÇ ZAMANI],10))*($B33<=DersListesi[BİTİŞ ZAMANI]),DersListesi[BENZERSİZ]),DersListesi[BENZERSİZ],0),2),0)","v":0},{"$f":"IFERROR(INDEX(DersListesi[],MATCH(SUMPRODUCT((DersListesi[GÜN]=DersProgramı[[#Headers],[CUMA]])*(ROUNDDOWN($B33,10)>=ROUNDDOWN(DersListesi[BAŞLANGIÇ ZAMANI],10))*($B33<=DersListesi[BİTİŞ ZAMANI]),DersListesi[BENZERSİZ]),DersListesi[BENZERSİZ],0),2),0)","v":0},{"$f":"IFERROR(INDEX(DersListesi[],MATCH(SUMPRODUCT((DersListesi[GÜN]=DersProgramı[[#Headers],[CUMARTESİ]])*(ROUNDDOWN($B33,10)>=ROUNDDOWN(DersListesi[BAŞLANGIÇ ZAMANI],10))*($B33<=DersListesi[BİTİŞ ZAMANI]),DersListesi[BENZERSİZ]),DersListesi[BENZERSİZ],0),2),0)","v":0}]
[null,"15:30:00",{"$f":"IFERROR(INDEX(DersListesi[],MATCH(SUMPRODUCT((DersListesi[GÜN]=DersProgramı[[#Headers],[PAZAR]])*(ROUNDDOWN($B34,10)>=ROUNDDOWN(DersListesi[BAŞLANGIÇ ZAMANI],10))*($B34<=DersListesi[BİTİŞ ZAMANI]),DersListesi[BENZERSİZ]),DersListesi[BENZERSİZ],0),2),0)","v":0},{"$f":"IFERROR(INDEX(DersListesi[],MATCH(SUMPRODUCT((DersListesi[GÜN]=DersProgramı[[#Headers],[PAZARTESİ]])*(ROUNDDOWN($B34,10)>=ROUNDDOWN(DersListesi[BAŞLANGIÇ ZAMANI],10))*($B34<=DersListesi[BİTİŞ ZAMANI]),DersListesi[BENZERSİZ]),DersListesi[BENZERSİZ],0),2),0)","v":0},{"$f":"IFERROR(INDEX(DersListesi[],MATCH(SUMPRODUCT((DersListesi[GÜN]=DersProgramı[[#Headers],[SALI]])*(ROUNDDOWN($B34,10)>=ROUNDDOWN(DersListesi[BAŞLANGIÇ ZAMANI],10))*($B34<=DersListesi[BİTİŞ ZAMANI]),DersListesi[BENZERSİZ]),DersListesi[BENZERSİZ],0),2),0)","v":0},{"$f":"IFERROR(INDEX(DersListesi[],MATCH(SUMPRODUCT((DersListesi[GÜN]=DersProgramı[[#Headers],[ÇARŞAMBA]])*(ROUNDDOWN($B34,10)>=ROUNDDOWN(DersListesi[BAŞLANGIÇ ZAMANI],10))*($B34<=DersListesi[BİTİŞ ZAMANI]),DersListesi[BENZERSİZ]),DersListesi[BENZERSİZ],0),2),0)","v":0},{"$f":"IFERROR(INDEX(DersListesi[],MATCH(SUMPRODUCT((DersListesi[GÜN]=DersProgramı[[#Headers],[PERŞEMBE]])*(ROUNDDOWN($B34,10)>=ROUNDDOWN(DersListesi[BAŞLANGIÇ ZAMANI],10))*($B34<=DersListesi[BİTİŞ ZAMANI]),DersListesi[BENZERSİZ]),DersListesi[BENZERSİZ],0),2),0)","v":0},{"$f":"IFERROR(INDEX(DersListesi[],MATCH(SUMPRODUCT((DersListesi[GÜN]=DersProgramı[[#Headers],[CUMA]])*(ROUNDDOWN($B34,10)>=ROUNDDOWN(DersListesi[BAŞLANGIÇ ZAMANI],10))*($B34<=DersListesi[BİTİŞ ZAMANI]),DersListesi[BENZERSİZ]),DersListesi[BENZERSİZ],0),2),0)","v":0},{"$f":"IFERROR(INDEX(DersListesi[],MATCH(SUMPRODUCT((DersListesi[GÜN]=DersProgramı[[#Headers],[CUMARTESİ]])*(ROUNDDOWN($B34,10)>=ROUNDDOWN(DersListesi[BAŞLANGIÇ ZAMANI],10))*($B34<=DersListesi[BİTİŞ ZAMANI]),DersListesi[BENZERSİZ]),DersListesi[BENZERSİZ],0),2),0)","v":0}]
[null,"15:45:00",{"$f":"IFERROR(INDEX(DersListesi[],MATCH(SUMPRODUCT((DersListesi[GÜN]=DersProgramı[[#Headers],[PAZAR]])*(ROUNDDOWN($B35,10)>=ROUNDDOWN(DersListesi[BAŞLANGIÇ ZAMANI],10))*($B35<=DersListesi[BİTİŞ ZAMANI]),DersListesi[BENZERSİZ]),DersListesi[BENZERSİZ],0),2),0)","v":0},{"$f":"IFERROR(INDEX(DersListesi[],MATCH(SUMPRODUCT((DersListesi[GÜN]=DersProgramı[[#Headers],[PAZARTESİ]])*(ROUNDDOWN($B35,10)>=ROUNDDOWN(DersListesi[BAŞLANGIÇ ZAMANI],10))*($B35<=DersListesi[BİTİŞ ZAMANI]),DersListesi[BENZERSİZ]),DersListesi[BENZERSİZ],0),2),0)","v":0},{"$f":"IFERROR(INDEX(DersListesi[],MATCH(SUMPRODUCT((DersListesi[GÜN]=DersProgramı[[#Headers],[SALI]])*(ROUNDDOWN($B35,10)>=ROUNDDOWN(DersListesi[BAŞLANGIÇ ZAMANI],10))*($B35<=DersListesi[BİTİŞ ZAMANI]),DersListesi[BENZERSİZ]),DersListesi[BENZERSİZ],0),2),0)","v":0},{"$f":"IFERROR(INDEX(DersListesi[],MATCH(SUMPRODUCT((DersListesi[GÜN]=DersProgramı[[#Headers],[ÇARŞAMBA]])*(ROUNDDOWN($B35,10)>=ROUNDDOWN(DersListesi[BAŞLANGIÇ ZAMANI],10))*($B35<=DersListesi[BİTİŞ ZAMANI]),DersListesi[BENZERSİZ]),DersListesi[BENZERSİZ],0),2),0)","v":0},{"$f":"IFERROR(INDEX(DersListesi[],MATCH(SUMPRODUCT((DersListesi[GÜN]=DersProgramı[[#Headers],[PERŞEMBE]])*(ROUNDDOWN($B35,10)>=ROUNDDOWN(DersListesi[BAŞLANGIÇ ZAMANI],10))*($B35<=DersListesi[BİTİŞ ZAMANI]),DersListesi[BENZERSİZ]),DersListesi[BENZERSİZ],0),2),0)","v":0},{"$f":"IFERROR(INDEX(DersListesi[],MATCH(SUMPRODUCT((DersListesi[GÜN]=DersProgramı[[#Headers],[CUMA]])*(ROUNDDOWN($B35,10)>=ROUNDDOWN(DersListesi[BAŞLANGIÇ ZAMANI],10))*($B35<=DersListesi[BİTİŞ ZAMANI]),DersListesi[BENZERSİZ]),DersListesi[BENZERSİZ],0),2),0)","v":0},{"$f":"IFERROR(INDEX(DersListesi[],MATCH(SUMPRODUCT((DersListesi[GÜN]=DersProgramı[[#Headers],[CUMARTESİ]])*(ROUNDDOWN($B35,10)>=ROUNDDOWN(DersListesi[BAŞLANGIÇ ZAMANI],10))*($B35<=DersListesi[BİTİŞ ZAMANI]),DersListesi[BENZERSİZ]),DersListesi[BENZERSİZ],0),2),0)","v":0}]
[null,"16:00:00",{"$f":"IFERROR(INDEX(DersListesi[],MATCH(SUMPRODUCT((DersListesi[GÜN]=DersProgramı[[#Headers],[PAZAR]])*(ROUNDDOWN($B36,10)>=ROUNDDOWN(DersListesi[BAŞLANGIÇ ZAMANI],10))*($B36<=DersListesi[BİTİŞ ZAMANI]),DersListesi[BENZERSİZ]),DersListesi[BENZERSİZ],0),2),0)","v":0},{"$f":"IFERROR(INDEX(DersListesi[],MATCH(SUMPRODUCT((DersListesi[GÜN]=DersProgramı[[#Headers],[PAZARTESİ]])*(ROUNDDOWN($B36,10)>=ROUNDDOWN(DersListesi[BAŞLANGIÇ ZAMANI],10))*($B36<=DersListesi[BİTİŞ ZAMANI]),DersListesi[BENZERSİZ]),DersListesi[BENZERSİZ],0),2),0)","v":"KN-111"},{"$f":"IFERROR(INDEX(DersListesi[],MATCH(SUMPRODUCT((DersListesi[GÜN]=DersProgramı[[#Headers],[SALI]])*(ROUNDDOWN($B36,10)>=ROUNDDOWN(DersListesi[BAŞLANGIÇ ZAMANI],10))*($B36<=DersListesi[BİTİŞ ZAMANI]),DersListesi[BENZERSİZ]),DersListesi[BENZERSİZ],0),2),0)","v":0},{"$f":"IFERROR(INDEX(DersListesi[],MATCH(SUMPRODUCT((DersListesi[GÜN]=DersProgramı[[#Headers],[ÇARŞAMBA]])*(ROUNDDOWN($B36,10)>=ROUNDDOWN(DersListesi[BAŞLANGIÇ ZAMANI],10))*($B36<=DersListesi[BİTİŞ ZAMANI]),DersListesi[BENZERSİZ]),DersListesi[BENZERSİZ],0),2),0)","v":0},{"$f":"IFERROR(INDEX(DersListesi[],MATCH(SUMPRODUCT((DersListesi[GÜN]=DersProgramı[[#Headers],[PERŞEMBE]])*(ROUNDDOWN($B36,10)>=ROUNDDOWN(DersListesi[BAŞLANGIÇ ZAMANI],10))*($B36<=DersListesi[BİTİŞ ZAMANI]),DersListesi[BENZERSİZ]),DersListesi[BENZERSİZ],0),2),0)","v":0},{"$f":"IFERROR(INDEX(DersListesi[],MATCH(SUMPRODUCT((DersListesi[GÜN]=DersProgramı[[#Headers],[CUMA]])*(ROUNDDOWN($B36,10)>=ROUNDDOWN(DersListesi[BAŞLANGIÇ ZAMANI],10))*($B36<=DersListesi[BİTİŞ ZAMANI]),DersListesi[BENZERSİZ]),DersListesi[BENZERSİZ],0),2),0)","v":0},{"$f":"IFERROR(INDEX(DersListesi[],MATCH(SUMPRODUCT((DersListesi[GÜN]=DersProgramı[[#Headers],[CUMARTESİ]])*(ROUNDDOWN($B36,10)>=ROUNDDOWN(DersListesi[BAŞLANGIÇ ZAMANI],10))*($B36<=DersListesi[BİTİŞ ZAMANI]),DersListesi[BENZERSİZ]),DersListesi[BENZERSİZ],0),2),0)","v":0}]
[null,{"$f":"B36+Artış","v":"16:15:00"},{"$f":"IFERROR(INDEX(DersListesi[],MATCH(SUMPRODUCT((DersListesi[GÜN]=DersProgramı[[#Headers],[PAZAR]])*(ROUNDDOWN($B37,10)>=ROUNDDOWN(DersListesi[BAŞLANGIÇ ZAMANI],10))*($B37<=DersListesi[BİTİŞ ZAMANI]),DersListesi[BENZERSİZ]),DersListesi[BENZERSİZ],0),2),0)","v":0},{"$f":"IFERROR(INDEX(DersListesi[],MATCH(SUMPRODUCT((DersListesi[GÜN]=DersProgramı[[#Headers],[PAZARTESİ]])*(ROUNDDOWN($B37,10)>=ROUNDDOWN(DersListesi[BAŞLANGIÇ ZAMANI],10))*($B37<=DersListesi[BİTİŞ ZAMANI]),DersListesi[BENZERSİZ]),DersListesi[BENZERSİZ],0),2),0)","v":"KN-111"},{"$f":"IFERROR(INDEX(DersListesi[],MATCH(SUMPRODUCT((DersListesi[GÜN]=DersProgramı[[#Headers],[SALI]])*(ROUNDDOWN($B37,10)>=ROUNDDOWN(DersListesi[BAŞLANGIÇ ZAMANI],10))*($B37<=DersListesi[BİTİŞ ZAMANI]),DersListesi[BENZERSİZ]),DersListesi[BENZERSİZ],0),2),0)","v":0},{"$f":"IFERROR(INDEX(DersListesi[],MATCH(SUMPRODUCT((DersListesi[GÜN]=DersProgramı[[#Headers],[ÇARŞAMBA]])*(ROUNDDOWN($B37,10)>=ROUNDDOWN(DersListesi[BAŞLANGIÇ ZAMANI],10))*($B37<=DersListesi[BİTİŞ ZAMANI]),DersListesi[BENZERSİZ]),DersListesi[BENZERSİZ],0),2),0)","v":0},{"$f":"IFERROR(INDEX(DersListesi[],MATCH(SUMPRODUCT((DersListesi[GÜN]=DersProgramı[[#Headers],[PERŞEMBE]])*(ROUNDDOWN($B37,10)>=ROUNDDOWN(DersListesi[BAŞLANGIÇ ZAMANI],10))*($B37<=DersListesi[BİTİŞ ZAMANI]),DersListesi[BENZERSİZ]),DersListesi[BENZERSİZ],0),2),0)","v":0},{"$f":"IFERROR(INDEX(DersListesi[],MATCH(SUMPRODUCT((DersListesi[GÜN]=DersProgramı[[#Headers],[CUMA]])*(ROUNDDOWN($B37,10)>=ROUNDDOWN(DersListesi[BAŞLANGIÇ ZAMANI],10))*($B37<=DersListesi[BİTİŞ ZAMANI]),DersListesi[BENZERSİZ]),DersListesi[BENZERSİZ],0),2),0)","v":0},{"$f":"IFERROR(INDEX(DersListesi[],MATCH(SUMPRODUCT((DersListesi[GÜN]=DersProgramı[[#Headers],[CUMARTESİ]])*(ROUNDDOWN($B37,10)>=ROUNDDOWN(DersListesi[BAŞLANGIÇ ZAMANI],10))*($B37<=DersListesi[BİTİŞ ZAMANI]),DersListesi[BENZERSİZ]),DersListesi[BENZERSİZ],0),2),0)","v":0}]
[null,"16:30:00",{"$f":"IFERROR(INDEX(DersListesi[],MATCH(SUMPRODUCT((DersListesi[GÜN]=DersProgramı[[#Headers],[PAZAR]])*(ROUNDDOWN($B38,10)>=ROUNDDOWN(DersListesi[BAŞLANGIÇ ZAMANI],10))*($B38<=DersListesi[BİTİŞ ZAMANI]),DersListesi[BENZERSİZ]),DersListesi[BENZERSİZ],0),2),0)","v":0},{"$f":"IFERROR(INDEX(DersListesi[],MATCH(SUMPRODUCT((DersListesi[GÜN]=DersProgramı[[#Headers],[PAZARTESİ]])*(ROUNDDOWN($B38,10)>=ROUNDDOWN(DersListesi[BAŞLANGIÇ ZAMANI],10))*($B38<=DersListesi[BİTİŞ ZAMANI]),DersListesi[BENZERSİZ]),DersListesi[BENZERSİZ],0),2),0)","v":"KN-111"},{"$f":"IFERROR(INDEX(DersListesi[],MATCH(SUMPRODUCT((DersListesi[GÜN]=DersProgramı[[#Headers],[SALI]])*(ROUNDDOWN($B38,10)>=ROUNDDOWN(DersListesi[BAŞLANGIÇ ZAMANI],10))*($B38<=DersListesi[BİTİŞ ZAMANI]),DersListesi[BENZERSİZ]),DersListesi[BENZERSİZ],0),2),0)","v":0},{"$f":"IFERROR(INDEX(DersListesi[],MATCH(SUMPRODUCT((DersListesi[GÜN]=DersProgramı[[#Headers],[ÇARŞAMBA]])*(ROUNDDOWN($B38,10)>=ROUNDDOWN(DersListesi[BAŞLANGIÇ ZAMANI],10))*($B38<=DersListesi[BİTİŞ ZAMANI]),DersListesi[BENZERSİZ]),DersListesi[BENZERSİZ],0),2),0)","v":0},{"$f":"IFERROR(INDEX(DersListesi[],MATCH(SUMPRODUCT((DersListesi[GÜN]=DersProgramı[[#Headers],[PERŞEMBE]])*(ROUNDDOWN($B38,10)>=ROUNDDOWN(DersListesi[BAŞLANGIÇ ZAMANI],10))*($B38<=DersListesi[BİTİŞ ZAMANI]),DersListesi[BENZERSİZ]),DersListesi[BENZERSİZ],0),2),0)","v":0},{"$f":"IFERROR(INDEX(DersListesi[],MATCH(SUMPRODUCT((DersListesi[GÜN]=DersProgramı[[#Headers],[CUMA]])*(ROUNDDOWN($B38,10)>=ROUNDDOWN(DersListesi[BAŞLANGIÇ ZAMANI],10))*($B38<=DersListesi[BİTİŞ ZAMANI]),DersListesi[BENZERSİZ]),DersListesi[BENZERSİZ],0),2),0)","v":0},{"$f":"IFERROR(INDEX(DersListesi[],MATCH(SUMPRODUCT((DersListesi[GÜN]=DersProgramı[[#Headers],[CUMARTESİ]])*(ROUNDDOWN($B38,10)>=ROUNDDOWN(DersListesi[BAŞLANGIÇ ZAMANI],10))*($B38<=DersListesi[BİTİŞ ZAMANI]),DersListesi[BENZERSİZ]),DersListesi[BENZERSİZ],0),2),0)","v":0}]
[null,"16:45:00",{"$f":"IFERROR(INDEX(DersListesi[],MATCH(SUMPRODUCT((DersListesi[GÜN]=DersProgramı[[#Headers],[PAZAR]])*(ROUNDDOWN($B39,10)>=ROUNDDOWN(DersListesi[BAŞLANGIÇ ZAMANI],10))*($B39<=DersListesi[BİTİŞ ZAMANI]),DersListesi[BENZERSİZ]),DersListesi[BENZERSİZ],0),2),0)","v":0},{"$f":"IFERROR(INDEX(DersListesi[],MATCH(SUMPRODUCT((DersListesi[GÜN]=DersProgramı[[#Headers],[PAZARTESİ]])*(ROUNDDOWN($B39,10)>=ROUNDDOWN(DersListesi[BAŞLANGIÇ ZAMANI],10))*($B39<=DersListesi[BİTİŞ ZAMANI]),DersListesi[BENZERSİZ]),DersListesi[BENZERSİZ],0),2),0)","v":"KN-111"},{"$f":"IFERROR(INDEX(DersListesi[],MATCH(SUMPRODUCT((DersListesi[GÜN]=DersProgramı[[#Headers],[SALI]])*(ROUNDDOWN($B39,10)>=ROUNDDOWN(DersListesi[BAŞLANGIÇ ZAMANI],10))*($B39<=DersListesi[BİTİŞ ZAMANI]),DersListesi[BENZERSİZ]),DersListesi[BENZERSİZ],0),2),0)","v":0},{"$f":"IFERROR(INDEX(DersListesi[],MATCH(SUMPRODUCT((DersListesi[GÜN]=DersProgramı[[#Headers],[ÇARŞAMBA]])*(ROUNDDOWN($B39,10)>=ROUNDDOWN(DersListesi[BAŞLANGIÇ ZAMANI],10))*($B39<=DersListesi[BİTİŞ ZAMANI]),DersListesi[BENZERSİZ]),DersListesi[BENZERSİZ],0),2),0)","v":0},{"$f":"IFERROR(INDEX(DersListesi[],MATCH(SUMPRODUCT((DersListesi[GÜN]=DersProgramı[[#Headers],[PERŞEMBE]])*(ROUNDDOWN($B39,10)>=ROUNDDOWN(DersListesi[BAŞLANGIÇ ZAMANI],10))*($B39<=DersListesi[BİTİŞ ZAMANI]),DersListesi[BENZERSİZ]),DersListesi[BENZERSİZ],0),2),0)","v":0},{"$f":"IFERROR(INDEX(DersListesi[],MATCH(SUMPRODUCT((DersListesi[GÜN]=DersProgramı[[#Headers],[CUMA]])*(ROUNDDOWN($B39,10)>=ROUNDDOWN(DersListesi[BAŞLANGIÇ ZAMANI],10))*($B39<=DersListesi[BİTİŞ ZAMANI]),DersListesi[BENZERSİZ]),DersListesi[BENZERSİZ],0),2),0)","v":0},{"$f":"IFERROR(INDEX(DersListesi[],MATCH(SUMPRODUCT((DersListesi[GÜN]=DersProgramı[[#Headers],[CUMARTESİ]])*(ROUNDDOWN($B39,10)>=ROUNDDOWN(DersListesi[BAŞLANGIÇ ZAMANI],10))*($B39<=DersListesi[BİTİŞ ZAMANI]),DersListesi[BENZERSİZ]),DersListesi[BENZERSİZ],0),2),0)","v":0}]
[null,"17:00:00",{"$f":"IFERROR(INDEX(DersListesi[],MATCH(SUMPRODUCT((DersListesi[GÜN]=DersProgramı[[#Headers],[PAZAR]])*(ROUNDDOWN($B40,10)>=ROUNDDOWN(DersListesi[BAŞLANGIÇ ZAMANI],10))*($B40<=DersListesi[BİTİŞ ZAMANI]),DersListesi[BENZERSİZ]),DersListesi[BENZERSİZ],0),2),0)","v":0},{"$f":"IFERROR(INDEX(DersListesi[],MATCH(SUMPRODUCT((DersListesi[GÜN]=DersProgramı[[#Headers],[PAZARTESİ]])*(ROUNDDOWN($B40,10)>=ROUNDDOWN(DersListesi[BAŞLANGIÇ ZAMANI],10))*($B40<=DersListesi[BİTİŞ ZAMANI]),DersListesi[BENZERSİZ]),DersListesi[BENZERSİZ],0),2),0)","v":"KN-111"},{"$f":"IFERROR(INDEX(DersListesi[],MATCH(SUMPRODUCT((DersListesi[GÜN]=DersProgramı[[#Headers],[SALI]])*(ROUNDDOWN($B40,10)>=ROUNDDOWN(DersListesi[BAŞLANGIÇ ZAMANI],10))*($B40<=DersListesi[BİTİŞ ZAMANI]),DersListesi[BENZERSİZ]),DersListesi[BENZERSİZ],0),2),0)","v":0},{"$f":"IFERROR(INDEX(DersListesi[],MATCH(SUMPRODUCT((DersListesi[GÜN]=DersProgramı[[#Headers],[ÇARŞAMBA]])*(ROUNDDOWN($B40,10)>=ROUNDDOWN(DersListesi[BAŞLANGIÇ ZAMANI],10))*($B40<=DersListesi[BİTİŞ ZAMANI]),DersListesi[BENZERSİZ]),DersListesi[BENZERSİZ],0),2),0)","v":0},{"$f":"IFERROR(INDEX(DersListesi[],MATCH(SUMPRODUCT((DersListesi[GÜN]=DersProgramı[[#Headers],[PERŞEMBE]])*(ROUNDDOWN($B40,10)>=ROUNDDOWN(DersListesi[BAŞLANGIÇ ZAMANI],10))*($B40<=DersListesi[BİTİŞ ZAMANI]),DersListesi[BENZERSİZ]),DersListesi[BENZERSİZ],0),2),0)","v":0},{"$f":"IFERROR(INDEX(DersListesi[],MATCH(SUMPRODUCT((DersListesi[GÜN]=DersProgramı[[#Headers],[CUMA]])*(ROUNDDOWN($B40,10)>=ROUNDDOWN(DersListesi[BAŞLANGIÇ ZAMANI],10))*($B40<=DersListesi[BİTİŞ ZAMANI]),DersListesi[BENZERSİZ]),DersListesi[BENZERSİZ],0),2),0)","v":0},{"$f":"IFERROR(INDEX(DersListesi[],MATCH(SUMPRODUCT((DersListesi[GÜN]=DersProgramı[[#Headers],[CUMARTESİ]])*(ROUNDDOWN($B40,10)>=ROUNDDOWN(DersListesi[BAŞLANGIÇ ZAMANI],10))*($B40<=DersListesi[BİTİŞ ZAMANI]),DersListesi[BENZERSİZ]),DersListesi[BENZERSİZ],0),2),0)","v":0}]
[null,"17:15:00",{"$f":"IFERROR(INDEX(DersListesi[],MATCH(SUMPRODUCT((DersListesi[GÜN]=DersProgramı[[#Headers],[PAZAR]])*(ROUNDDOWN($B41,10)>=ROUNDDOWN(DersListesi[BAŞLANGIÇ ZAMANI],10))*($B41<=DersListesi[BİTİŞ ZAMANI]),DersListesi[BENZERSİZ]),DersListesi[BENZERSİZ],0),2),0)","v":0},{"$f":"IFERROR(INDEX(DersListesi[],MATCH(SUMPRODUCT((DersListesi[GÜN]=DersProgramı[[#Headers],[PAZARTESİ]])*(ROUNDDOWN($B41,10)>=ROUNDDOWN(DersListesi[BAŞLANGIÇ ZAMANI],10))*($B41<=DersListesi[BİTİŞ ZAMANI]),DersListesi[BENZERSİZ]),DersListesi[BENZERSİZ],0),2),0)","v":0},{"$f":"IFERROR(INDEX(DersListesi[],MATCH(SUMPRODUCT((DersListesi[GÜN]=DersProgramı[[#Headers],[SALI]])*(ROUNDDOWN($B41,10)>=ROUNDDOWN(DersListesi[BAŞLANGIÇ ZAMANI],10))*($B41<=DersListesi[BİTİŞ ZAMANI]),DersListesi[BENZERSİZ]),DersListesi[BENZERSİZ],0),2),0)","v":0},{"$f":"IFERROR(INDEX(DersListesi[],MATCH(SUMPRODUCT((DersListesi[GÜN]=DersProgramı[[#Headers],[ÇARŞAMBA]])*(ROUNDDOWN($B41,10)>=ROUNDDOWN(DersListesi[BAŞLANGIÇ ZAMANI],10))*($B41<=DersListesi[BİTİŞ ZAMANI]),DersListesi[BENZERSİZ]),DersListesi[BENZERSİZ],0),2),0)","v":0},{"$f":"IFERROR(INDEX(DersListesi[],MATCH(SUMPRODUCT((DersListesi[GÜN]=DersProgramı[[#Headers],[PERŞEMBE]])*(ROUNDDOWN($B41,10)>=ROUNDDOWN(DersListesi[BAŞLANGIÇ ZAMANI],10))*($B41<=DersListesi[BİTİŞ ZAMANI]),DersListesi[BENZERSİZ]),DersListesi[BENZERSİZ],0),2),0)","v":0},{"$f":"IFERROR(INDEX(DersListesi[],MATCH(SUMPRODUCT((DersListesi[GÜN]=DersProgramı[[#Headers],[CUMA]])*(ROUNDDOWN($B41,10)>=ROUNDDOWN(DersListesi[BAŞLANGIÇ ZAMANI],10))*($B41<=DersListesi[BİTİŞ ZAMANI]),DersListesi[BENZERSİZ]),DersListesi[BENZERSİZ],0),2),0)","v":0},{"$f":"IFERROR(INDEX(DersListesi[],MATCH(SUMPRODUCT((DersListesi[GÜN]=DersProgramı[[#Headers],[CUMARTESİ]])*(ROUNDDOWN($B41,10)>=ROUNDDOWN(DersListesi[BAŞLANGIÇ ZAMANI],10))*($B41<=DersListesi[BİTİŞ ZAMANI]),DersListesi[BENZERSİZ]),DersListesi[BENZERSİZ],0),2),0)","v":0}]
[null,"17:30:00",{"$f":"IFERROR(INDEX(DersListesi[],MATCH(SUMPRODUCT((DersListesi[GÜN]=DersProgramı[[#Headers],[PAZAR]])*(ROUNDDOWN($B42,10)>=ROUNDDOWN(DersListesi[BAŞLANGIÇ ZAMANI],10))*($B42<=DersListesi[BİTİŞ ZAMANI]),DersListesi[BENZERSİZ]),DersListesi[BENZERSİZ],0),2),0)","v":0},{"$f":"IFERROR(INDEX(DersListesi[],MATCH(SUMPRODUCT((DersListesi[GÜN]=DersProgramı[[#Headers],[PAZARTESİ]])*(ROUNDDOWN($B42,10)>=ROUNDDOWN(DersListesi[BAŞLANGIÇ ZAMANI],10))*($B42<=DersListesi[BİTİŞ ZAMANI]),DersListesi[BENZERSİZ]),DersListesi[BENZERSİZ],0),2),0)","v":0},{"$f":"IFERROR(INDEX(DersListesi[],MATCH(SUMPRODUCT((DersListesi[GÜN]=DersProgramı[[#Headers],[SALI]])*(ROUNDDOWN($B42,10)>=ROUNDDOWN(DersListesi[BAŞLANGIÇ ZAMANI],10))*($B42<=DersListesi[BİTİŞ ZAMANI]),DersListesi[BENZERSİZ]),DersListesi[BENZERSİZ],0),2),0)","v":0},{"$f":"IFERROR(INDEX(DersListesi[],MATCH(SUMPRODUCT((DersListesi[GÜN]=DersProgramı[[#Headers],[ÇARŞAMBA]])*(ROUNDDOWN($B42,10)>=ROUNDDOWN(DersListesi[BAŞLANGIÇ ZAMANI],10))*($B42<=DersListesi[BİTİŞ ZAMANI]),DersListesi[BENZERSİZ]),DersListesi[BENZERSİZ],0),2),0)","v":0},{"$f":"IFERROR(INDEX(DersListesi[],MATCH(SUMPRODUCT((DersListesi[GÜN]=DersProgramı[[#Headers],[PERŞEMBE]])*(ROUNDDOWN($B42,10)>=ROUNDDOWN(DersListesi[BAŞLANGIÇ ZAMANI],10))*($B42<=DersListesi[BİTİŞ ZAMANI]),DersListesi[BENZERSİZ]),DersListesi[BENZERSİZ],0),2),0)","v":0},{"$f":"IFERROR(INDEX(DersListesi[],MATCH(SUMPRODUCT((DersListesi[GÜN]=DersProgramı[[#Headers],[CUMA]])*(ROUNDDOWN($B42,10)>=ROUNDDOWN(DersListesi[BAŞLANGIÇ ZAMANI],10))*($B42<=DersListesi[BİTİŞ ZAMANI]),DersListesi[BENZERSİZ]),DersListesi[BENZERSİZ],0),2),0)","v":0},{"$f":"IFERROR(INDEX(DersListesi[],MATCH(SUMPRODUCT((DersListesi[GÜN]=DersProgramı[[#Headers],[CUMARTESİ]])*(ROUNDDOWN($B42,10)>=ROUNDDOWN(DersListesi[BAŞLANGIÇ ZAMANI],10))*($B42<=DersListesi[BİTİŞ ZAMANI]),DersListesi[BENZERSİZ]),DersListesi[BENZERSİZ],0),2),0)","v":0}]
[null,"17:45:00",{"$f":"IFERROR(INDEX(DersListesi[],MATCH(SUMPRODUCT((DersListesi[GÜN]=DersProgramı[[#Headers],[PAZAR]])*(ROUNDDOWN($B43,10)>=ROUNDDOWN(DersListesi[BAŞLANGIÇ ZAMANI],10))*($B43<=DersListesi[BİTİŞ ZAMANI]),DersListesi[BENZERSİZ]),DersListesi[BENZERSİZ],0),2),0)","v":0},{"$f":"IFERROR(INDEX(DersListesi[],MATCH(SUMPRODUCT((DersListesi[GÜN]=DersProgramı[[#Headers],[PAZARTESİ]])*(ROUNDDOWN($B43,10)>=ROUNDDOWN(DersListesi[BAŞLANGIÇ ZAMANI],10))*($B43<=DersListesi[BİTİŞ ZAMANI]),DersListesi[BENZERSİZ]),DersListesi[BENZERSİZ],0),2),0)","v":0},{"$f":"IFERROR(INDEX(DersListesi[],MATCH(SUMPRODUCT((DersListesi[GÜN]=DersProgramı[[#Headers],[SALI]])*(ROUNDDOWN($B43,10)>=ROUNDDOWN(DersListesi[BAŞLANGIÇ ZAMANI],10))*($B43<=DersListesi[BİTİŞ ZAMANI]),DersListesi[BENZERSİZ]),DersListesi[BENZERSİZ],0),2),0)","v":0},{"$f":"IFERROR(INDEX(DersListesi[],MATCH(SUMPRODUCT((DersListesi[GÜN]=DersProgramı[[#Headers],[ÇARŞAMBA]])*(ROUNDDOWN($B43,10)>=ROUNDDOWN(DersListesi[BAŞLANGIÇ ZAMANI],10))*($B43<=DersListesi[BİTİŞ ZAMANI]),DersListesi[BENZERSİZ]),DersListesi[BENZERSİZ],0),2),0)","v":0},{"$f":"IFERROR(INDEX(DersListesi[],MATCH(SUMPRODUCT((DersListesi[GÜN]=DersProgramı[[#Headers],[PERŞEMBE]])*(ROUNDDOWN($B43,10)>=ROUNDDOWN(DersListesi[BAŞLANGIÇ ZAMANI],10))*($B43<=DersListesi[BİTİŞ ZAMANI]),DersListesi[BENZERSİZ]),DersListesi[BENZERSİZ],0),2),0)","v":0},{"$f":"IFERROR(INDEX(DersListesi[],MATCH(SUMPRODUCT((DersListesi[GÜN]=DersProgramı[[#Headers],[CUMA]])*(ROUNDDOWN($B43,10)>=ROUNDDOWN(DersListesi[BAŞLANGIÇ ZAMANI],10))*($B43<=DersListesi[BİTİŞ ZAMANI]),DersListesi[BENZERSİZ]),DersListesi[BENZERSİZ],0),2),0)","v":0},{"$f":"IFERROR(INDEX(DersListesi[],MATCH(SUMPRODUCT((DersListesi[GÜN]=DersProgramı[[#Headers],[CUMARTESİ]])*(ROUNDDOWN($B43,10)>=ROUNDDOWN(DersListesi[BAŞLANGIÇ ZAMANI],10))*($B43<=DersListesi[BİTİŞ ZAMANI]),DersListesi[BENZERSİZ]),DersListesi[BENZERSİZ],0),2),0)","v":0}]
[null,"18:00:00",{"$f":"IFERROR(INDEX(DersListesi[],MATCH(SUMPRODUCT((DersListesi[GÜN]=DersProgramı[[#Headers],[PAZAR]])*(ROUNDDOWN($B44,10)>=ROUNDDOWN(DersListesi[BAŞLANGIÇ ZAMANI],10))*($B44<=DersListesi[BİTİŞ ZAMANI]),DersListesi[BENZERSİZ]),DersListesi[BENZERSİZ],0),2),0)","v":0},{"$f":"IFERROR(INDEX(DersListesi[],MATCH(SUMPRODUCT((DersListesi[GÜN]=DersProgramı[[#Headers],[PAZARTESİ]])*(ROUNDDOWN($B44,10)>=ROUNDDOWN(DersListesi[BAŞLANGIÇ ZAMANI],10))*($B44<=DersListesi[BİTİŞ ZAMANI]),DersListesi[BENZERSİZ]),DersListesi[BENZERSİZ],0),2),0)","v":0},{"$f":"IFERROR(INDEX(DersListesi[],MATCH(SUMPRODUCT((DersListesi[GÜN]=DersProgramı[[#Headers],[SALI]])*(ROUNDDOWN($B44,10)>=ROUNDDOWN(DersListesi[BAŞLANGIÇ ZAMANI],10))*($B44<=DersListesi[BİTİŞ ZAMANI]),DersListesi[BENZERSİZ]),DersListesi[BENZERSİZ],0),2),0)","v":0},{"$f":"IFERROR(INDEX(DersListesi[],MATCH(SUMPRODUCT((DersListesi[GÜN]=DersProgramı[[#Headers],[ÇARŞAMBA]])*(ROUNDDOWN($B44,10)>=ROUNDDOWN(DersListesi[BAŞLANGIÇ ZAMANI],10))*($B44<=DersListesi[BİTİŞ ZAMANI]),DersListesi[BENZERSİZ]),DersListesi[BENZERSİZ],0),2),0)","v":0},{"$f":"IFERROR(INDEX(DersListesi[],MATCH(SUMPRODUCT((DersListesi[GÜN]=DersProgramı[[#Headers],[PERŞEMBE]])*(ROUNDDOWN($B44,10)>=ROUNDDOWN(DersListesi[BAŞLANGIÇ ZAMANI],10))*($B44<=DersListesi[BİTİŞ ZAMANI]),DersListesi[BENZERSİZ]),DersListesi[BENZERSİZ],0),2),0)","v":0},{"$f":"IFERROR(INDEX(DersListesi[],MATCH(SUMPRODUCT((DersListesi[GÜN]=DersProgramı[[#Headers],[CUMA]])*(ROUNDDOWN($B44,10)>=ROUNDDOWN(DersListesi[BAŞLANGIÇ ZAMANI],10))*($B44<=DersListesi[BİTİŞ ZAMANI]),DersListesi[BENZERSİZ]),DersListesi[BENZERSİZ],0),2),0)","v":0},{"$f":"IFERROR(INDEX(DersListesi[],MATCH(SUMPRODUCT((DersListesi[GÜN]=DersProgramı[[#Headers],[CUMARTESİ]])*(ROUNDDOWN($B44,10)>=ROUNDDOWN(DersListesi[BAŞLANGIÇ ZAMANI],10))*($B44<=DersListesi[BİTİŞ ZAMANI]),DersListesi[BENZERSİZ]),DersListesi[BENZERSİZ],0),2),0)","v":0}]
[null,"18:15:00",{"$f":"IFERROR(INDEX(DersListesi[],MATCH(SUMPRODUCT((DersListesi[GÜN]=DersProgramı[[#Headers],[PAZAR]])*(ROUNDDOWN($B45,10)>=ROUNDDOWN(DersListesi[BAŞLANGIÇ ZAMANI],10))*($B45<=DersListesi[BİTİŞ ZAMANI]),DersListesi[BENZERSİZ]),DersListesi[BENZERSİZ],0),2),0)","v":0},{"$f":"IFERROR(INDEX(DersListesi[],MATCH(SUMPRODUCT((DersListesi[GÜN]=DersProgramı[[#Headers],[PAZARTESİ]])*(ROUNDDOWN($B45,10)>=ROUNDDOWN(DersListesi[BAŞLANGIÇ ZAMANI],10))*($B45<=DersListesi[BİTİŞ ZAMANI]),DersListesi[BENZERSİZ]),DersListesi[BENZERSİZ],0),2),0)","v":0},{"$f":"IFERROR(INDEX(DersListesi[],MATCH(SUMPRODUCT((DersListesi[GÜN]=DersProgramı[[#Headers],[SALI]])*(ROUNDDOWN($B45,10)>=ROUNDDOWN(DersListesi[BAŞLANGIÇ ZAMANI],10))*($B45<=DersListesi[BİTİŞ ZAMANI]),DersListesi[BENZERSİZ]),DersListesi[BENZERSİZ],0),2),0)","v":0},{"$f":"IFERROR(INDEX(DersListesi[],MATCH(SUMPRODUCT((DersListesi[GÜN]=DersProgramı[[#Headers],[ÇARŞAMBA]])*(ROUNDDOWN($B45,10)>=ROUNDDOWN(DersListesi[BAŞLANGIÇ ZAMANI],10))*($B45<=DersListesi[BİTİŞ ZAMANI]),DersListesi[BENZERSİZ]),DersListesi[BENZERSİZ],0),2),0)","v":0},{"$f":"IFERROR(INDEX(DersListesi[],MATCH(SUMPRODUCT((DersListesi[GÜN]=DersProgramı[[#Headers],[PERŞEMBE]])*(ROUNDDOWN($B45,10)>=ROUNDDOWN(DersListesi[BAŞLANGIÇ ZAMANI],10))*($B45<=DersListesi[BİTİŞ ZAMANI]),DersListesi[BENZERSİZ]),DersListesi[BENZERSİZ],0),2),0)","v":0},{"$f":"IFERROR(INDEX(DersListesi[],MATCH(SUMPRODUCT((DersListesi[GÜN]=DersProgramı[[#Headers],[CUMA]])*(ROUNDDOWN($B45,10)>=ROUNDDOWN(DersListesi[BAŞLANGIÇ ZAMANI],10))*($B45<=DersListesi[BİTİŞ ZAMANI]),DersListesi[BENZERSİZ]),DersListesi[BENZERSİZ],0),2),0)","v":0},{"$f":"IFERROR(INDEX(DersListesi[],MATCH(SUMPRODUCT((DersListesi[GÜN]=DersProgramı[[#Headers],[CUMARTESİ]])*(ROUNDDOWN($B45,10)>=ROUNDDOWN(DersListesi[BAŞLANGIÇ ZAMANI],10))*($B45<=DersListesi[BİTİŞ ZAMANI]),DersListesi[BENZERSİZ]),DersListesi[BENZERSİZ],0),2),0)","v":0}]
[null,"18:30:00",{"$f":"IFERROR(INDEX(DersListesi[],MATCH(SUMPRODUCT((DersListesi[GÜN]=DersProgramı[[#Headers],[PAZAR]])*(ROUNDDOWN($B46,10)>=ROUNDDOWN(DersListesi[BAŞLANGIÇ ZAMANI],10))*($B46<=DersListesi[BİTİŞ ZAMANI]),DersListesi[BENZERSİZ]),DersListesi[BENZERSİZ],0),2),0)","v":0},{"$f":"IFERROR(INDEX(DersListesi[],MATCH(SUMPRODUCT((DersListesi[GÜN]=DersProgramı[[#Headers],[PAZARTESİ]])*(ROUNDDOWN($B46,10)>=ROUNDDOWN(DersListesi[BAŞLANGIÇ ZAMANI],10))*($B46<=DersListesi[BİTİŞ ZAMANI]),DersListesi[BENZERSİZ]),DersListesi[BENZERSİZ],0),2),0)","v":0},{"$f":"IFERROR(INDEX(DersListesi[],MATCH(SUMPRODUCT((DersListesi[GÜN]=DersProgramı[[#Headers],[SALI]])*(ROUNDDOWN($B46,10)>=ROUNDDOWN(DersListesi[BAŞLANGIÇ ZAMANI],10))*($B46<=DersListesi[BİTİŞ ZAMANI]),DersListesi[BENZERSİZ]),DersListesi[BENZERSİZ],0),2),0)","v":0},{"$f":"IFERROR(INDEX(DersListesi[],MATCH(SUMPRODUCT((DersListesi[GÜN]=DersProgramı[[#Headers],[ÇARŞAMBA]])*(ROUNDDOWN($B46,10)>=ROUNDDOWN(DersListesi[BAŞLANGIÇ ZAMANI],10))*($B46<=DersListesi[BİTİŞ ZAMANI]),DersListesi[BENZERSİZ]),DersListesi[BENZERSİZ],0),2),0)","v":0},{"$f":"IFERROR(INDEX(DersListesi[],MATCH(SUMPRODUCT((DersListesi[GÜN]=DersProgramı[[#Headers],[PERŞEMBE]])*(ROUNDDOWN($B46,10)>=ROUNDDOWN(DersListesi[BAŞLANGIÇ ZAMANI],10))*($B46<=DersListesi[BİTİŞ ZAMANI]),DersListesi[BENZERSİZ]),DersListesi[BENZERSİZ],0),2),0)","v":0},{"$f":"IFERROR(INDEX(DersListesi[],MATCH(SUMPRODUCT((DersListesi[GÜN]=DersProgramı[[#Headers],[CUMA]])*(ROUNDDOWN($B46,10)>=ROUNDDOWN(DersListesi[BAŞLANGIÇ ZAMANI],10))*($B46<=DersListesi[BİTİŞ ZAMANI]),DersListesi[BENZERSİZ]),DersListesi[BENZERSİZ],0),2),0)","v":0},{"$f":"IFERROR(INDEX(DersListesi[],MATCH(SUMPRODUCT((DersListesi[GÜN]=DersProgramı[[#Headers],[CUMARTESİ]])*(ROUNDDOWN($B46,10)>=ROUNDDOWN(DersListesi[BAŞLANGIÇ ZAMANI],10))*($B46<=DersListesi[BİTİŞ ZAMANI]),DersListesi[BENZERSİZ]),DersListesi[BENZERSİZ],0),2),0)","v":0}]
[null,"18:45:00",{"$f":"IFERROR(INDEX(DersListesi[],MATCH(SUMPRODUCT((DersListesi[GÜN]=DersProgramı[[#Headers],[PAZAR]])*(ROUNDDOWN($B47,10)>=ROUNDDOWN(DersListesi[BAŞLANGIÇ ZAMANI],10))*($B47<=DersListesi[BİTİŞ ZAMANI]),DersListesi[BENZERSİZ]),DersListesi[BENZERSİZ],0),2),0)","v":0},{"$f":"IFERROR(INDEX(DersListesi[],MATCH(SUMPRODUCT((DersListesi[GÜN]=DersProgramı[[#Headers],[PAZARTESİ]])*(ROUNDDOWN($B47,10)>=ROUNDDOWN(DersListesi[BAŞLANGIÇ ZAMANI],10))*($B47<=DersListesi[BİTİŞ ZAMANI]),DersListesi[BENZERSİZ]),DersListesi[BENZERSİZ],0),2),0)","v":0},{"$f":"IFERROR(INDEX(DersListesi[],MATCH(SUMPRODUCT((DersListesi[GÜN]=DersProgramı[[#Headers],[SALI]])*(ROUNDDOWN($B47,10)>=ROUNDDOWN(DersListesi[BAŞLANGIÇ ZAMANI],10))*($B47<=DersListesi[BİTİŞ ZAMANI]),DersListesi[BENZERSİZ]),DersListesi[BENZERSİZ],0),2),0)","v":0},{"$f":"IFERROR(INDEX(DersListesi[],MATCH(SUMPRODUCT((DersListesi[GÜN]=DersProgramı[[#Headers],[ÇARŞAMBA]])*(ROUNDDOWN($B47,10)>=ROUNDDOWN(DersListesi[BAŞLANGIÇ ZAMANI],10))*($B47<=DersListesi[BİTİŞ ZAMANI]),DersListesi[BENZERSİZ]),DersListesi[BENZERSİZ],0),2),0)","v":0},{"$f":"IFERROR(INDEX(DersListesi[],MATCH(SUMPRODUCT((DersListesi[GÜN]=DersProgramı[[#Headers],[PERŞEMBE]])*(ROUNDDOWN($B47,10)>=ROUNDDOWN(DersListesi[BAŞLANGIÇ ZAMANI],10))*($B47<=DersListesi[BİTİŞ ZAMANI]),DersListesi[BENZERSİZ]),DersListesi[BENZERSİZ],0),2),0)","v":0},{"$f":"IFERROR(INDEX(DersListesi[],MATCH(SUMPRODUCT((DersListesi[GÜN]=DersProgramı[[#Headers],[CUMA]])*(ROUNDDOWN($B47,10)>=ROUNDDOWN(DersListesi[BAŞLANGIÇ ZAMANI],10))*($B47<=DersListesi[BİTİŞ ZAMANI]),DersListesi[BENZERSİZ]),DersListesi[BENZERSİZ],0),2),0)","v":0},{"$f":"IFERROR(INDEX(DersListesi[],MATCH(SUMPRODUCT((DersListesi[GÜN]=DersProgramı[[#Headers],[CUMARTESİ]])*(ROUNDDOWN($B47,10)>=ROUNDDOWN(DersListesi[BAŞLANGIÇ ZAMANI],10))*($B47<=DersListesi[BİTİŞ ZAMANI]),DersListesi[BENZERSİZ]),DersListesi[BENZERSİZ],0),2),0)","v":0}]
[null,"19:00:00",{"$f":"IFERROR(INDEX(DersListesi[],MATCH(SUMPRODUCT((DersListesi[GÜN]=DersProgramı[[#Headers],[PAZAR]])*(ROUNDDOWN($B48,10)>=ROUNDDOWN(DersListesi[BAŞLANGIÇ ZAMANI],10))*($B48<=DersListesi[BİTİŞ ZAMANI]),DersListesi[BENZERSİZ]),DersListesi[BENZERSİZ],0),2),0)","v":0},{"$f":"IFERROR(INDEX(DersListesi[],MATCH(SUMPRODUCT((DersListesi[GÜN]=DersProgramı[[#Headers],[PAZARTESİ]])*(ROUNDDOWN($B48,10)>=ROUNDDOWN(DersListesi[BAŞLANGIÇ ZAMANI],10))*($B48<=DersListesi[BİTİŞ ZAMANI]),DersListesi[BENZERSİZ]),DersListesi[BENZERSİZ],0),2),0)","v":0},{"$f":"IFERROR(INDEX(DersListesi[],MATCH(SUMPRODUCT((DersListesi[GÜN]=DersProgramı[[#Headers],[SALI]])*(ROUNDDOWN($B48,10)>=ROUNDDOWN(DersListesi[BAŞLANGIÇ ZAMANI],10))*($B48<=DersListesi[BİTİŞ ZAMANI]),DersListesi[BENZERSİZ]),DersListesi[BENZERSİZ],0),2),0)","v":0},{"$f":"IFERROR(INDEX(DersListesi[],MATCH(SUMPRODUCT((DersListesi[GÜN]=DersProgramı[[#Headers],[ÇARŞAMBA]])*(ROUNDDOWN($B48,10)>=ROUNDDOWN(DersListesi[BAŞLANGIÇ ZAMANI],10))*($B48<=DersListesi[BİTİŞ ZAMANI]),DersListesi[BENZERSİZ]),DersListesi[BENZERSİZ],0),2),0)","v":0},{"$f":"IFERROR(INDEX(DersListesi[],MATCH(SUMPRODUCT((DersListesi[GÜN]=DersProgramı[[#Headers],[PERŞEMBE]])*(ROUNDDOWN($B48,10)>=ROUNDDOWN(DersListesi[BAŞLANGIÇ ZAMANI],10))*($B48<=DersListesi[BİTİŞ ZAMANI]),DersListesi[BENZERSİZ]),DersListesi[BENZERSİZ],0),2),0)","v":0},{"$f":"IFERROR(INDEX(DersListesi[],MATCH(SUMPRODUCT((DersListesi[GÜN]=DersProgramı[[#Headers],[CUMA]])*(ROUNDDOWN($B48,10)>=ROUNDDOWN(DersListesi[BAŞLANGIÇ ZAMANI],10))*($B48<=DersListesi[BİTİŞ ZAMANI]),DersListesi[BENZERSİZ]),DersListesi[BENZERSİZ],0),2),0)","v":0},{"$f":"IFERROR(INDEX(DersListesi[],MATCH(SUMPRODUCT((DersListesi[GÜN]=DersProgramı[[#Headers],[CUMARTESİ]])*(ROUNDDOWN($B48,10)>=ROUNDDOWN(DersListesi[BAŞLANGIÇ ZAMANI],10))*($B48<=DersListesi[BİTİŞ ZAMANI]),DersListesi[BENZERSİZ]),DersListesi[BENZERSİZ],0),2),0)","v":0}]
[null,"19:15:00",{"$f":"IFERROR(INDEX(DersListesi[],MATCH(SUMPRODUCT((DersListesi[GÜN]=DersProgramı[[#Headers],[PAZAR]])*(ROUNDDOWN($B49,10)>=ROUNDDOWN(DersListesi[BAŞLANGIÇ ZAMANI],10))*($B49<=DersListesi[BİTİŞ ZAMANI]),DersListesi[BENZERSİZ]),DersListesi[BENZERSİZ],0),2),0)","v":0},{"$f":"IFERROR(INDEX(DersListesi[],MATCH(SUMPRODUCT((DersListesi[GÜN]=DersProgramı[[#Headers],[PAZARTESİ]])*(ROUNDDOWN($B49,10)>=ROUNDDOWN(DersListesi[BAŞLANGIÇ ZAMANI],10))*($B49<=DersListesi[BİTİŞ ZAMANI]),DersListesi[BENZERSİZ]),DersListesi[BENZERSİZ],0),2),0)","v":0},{"$f":"IFERROR(INDEX(DersListesi[],MATCH(SUMPRODUCT((DersListesi[GÜN]=DersProgramı[[#Headers],[SALI]])*(ROUNDDOWN($B49,10)>=ROUNDDOWN(DersListesi[BAŞLANGIÇ ZAMANI],10))*($B49<=DersListesi[BİTİŞ ZAMANI]),DersListesi[BENZERSİZ]),DersListesi[BENZERSİZ],0),2),0)","v":0},{"$f":"IFERROR(INDEX(DersListesi[],MATCH(SUMPRODUCT((DersListesi[GÜN]=DersProgramı[[#Headers],[ÇARŞAMBA]])*(ROUNDDOWN($B49,10)>=ROUNDDOWN(DersListesi[BAŞLANGIÇ ZAMANI],10))*($B49<=DersListesi[BİTİŞ ZAMANI]),DersListesi[BENZERSİZ]),DersListesi[BENZERSİZ],0),2),0)","v":0},{"$f":"IFERROR(INDEX(DersListesi[],MATCH(SUMPRODUCT((DersListesi[GÜN]=DersProgramı[[#Headers],[PERŞEMBE]])*(ROUNDDOWN($B49,10)>=ROUNDDOWN(DersListesi[BAŞLANGIÇ ZAMANI],10))*($B49<=DersListesi[BİTİŞ ZAMANI]),DersListesi[BENZERSİZ]),DersListesi[BENZERSİZ],0),2),0)","v":0},{"$f":"IFERROR(INDEX(DersListesi[],MATCH(SUMPRODUCT((DersListesi[GÜN]=DersProgramı[[#Headers],[CUMA]])*(ROUNDDOWN($B49,10)>=ROUNDDOWN(DersListesi[BAŞLANGIÇ ZAMANI],10))*($B49<=DersListesi[BİTİŞ ZAMANI]),DersListesi[BENZERSİZ]),DersListesi[BENZERSİZ],0),2),0)","v":0},{"$f":"IFERROR(INDEX(DersListesi[],MATCH(SUMPRODUCT((DersListesi[GÜN]=DersProgramı[[#Headers],[CUMARTESİ]])*(ROUNDDOWN($B49,10)>=ROUNDDOWN(DersListesi[BAŞLANGIÇ ZAMANI],10))*($B49<=DersListesi[BİTİŞ ZAMANI]),DersListesi[BENZERSİZ]),DersListesi[BENZERSİZ],0),2),0)","v":0}]
[null,"19:30:00",{"$f":"IFERROR(INDEX(DersListesi[],MATCH(SUMPRODUCT((DersListesi[GÜN]=DersProgramı[[#Headers],[PAZAR]])*(ROUNDDOWN($B50,10)>=ROUNDDOWN(DersListesi[BAŞLANGIÇ ZAMANI],10))*($B50<=DersListesi[BİTİŞ ZAMANI]),DersListesi[BENZERSİZ]),DersListesi[BENZERSİZ],0),2),0)","v":0},{"$f":"IFERROR(INDEX(DersListesi[],MATCH(SUMPRODUCT((DersListesi[GÜN]=DersProgramı[[#Headers],[PAZARTESİ]])*(ROUNDDOWN($B50,10)>=ROUNDDOWN(DersListesi[BAŞLANGIÇ ZAMANI],10))*($B50<=DersListesi[BİTİŞ ZAMANI]),DersListesi[BENZERSİZ]),DersListesi[BENZERSİZ],0),2),0)","v":0},{"$f":"IFERROR(INDEX(DersListesi[],MATCH(SUMPRODUCT((DersListesi[GÜN]=DersProgramı[[#Headers],[SALI]])*(ROUNDDOWN($B50,10)>=ROUNDDOWN(DersListesi[BAŞLANGIÇ ZAMANI],10))*($B50<=DersListesi[BİTİŞ ZAMANI]),DersListesi[BENZERSİZ]),DersListesi[BENZERSİZ],0),2),0)","v":0},{"$f":"IFERROR(INDEX(DersListesi[],MATCH(SUMPRODUCT((DersListesi[GÜN]=DersProgramı[[#Headers],[ÇARŞAMBA]])*(ROUNDDOWN($B50,10)>=ROUNDDOWN(DersListesi[BAŞLANGIÇ ZAMANI],10))*($B50<=DersListesi[BİTİŞ ZAMANI]),DersListesi[BENZERSİZ]),DersListesi[BENZERSİZ],0),2),0)","v":0},{"$f":"IFERROR(INDEX(DersListesi[],MATCH(SUMPRODUCT((DersListesi[GÜN]=DersProgramı[[#Headers],[PERŞEMBE]])*(ROUNDDOWN($B50,10)>=ROUNDDOWN(DersListesi[BAŞLANGIÇ ZAMANI],10))*($B50<=DersListesi[BİTİŞ ZAMANI]),DersListesi[BENZERSİZ]),DersListesi[BENZERSİZ],0),2),0)","v":0},{"$f":"IFERROR(INDEX(DersListesi[],MATCH(SUMPRODUCT((DersListesi[GÜN]=DersProgramı[[#Headers],[CUMA]])*(ROUNDDOWN($B50,10)>=ROUNDDOWN(DersListesi[BAŞLANGIÇ ZAMANI],10))*($B50<=DersListesi[BİTİŞ ZAMANI]),DersListesi[BENZERSİZ]),DersListesi[BENZERSİZ],0),2),0)","v":0},{"$f":"IFERROR(INDEX(DersListesi[],MATCH(SUMPRODUCT((DersListesi[GÜN]=DersProgramı[[#Headers],[CUMARTESİ]])*(ROUNDDOWN($B50,10)>=ROUNDDOWN(DersListesi[BAŞLANGIÇ ZAMANI],10))*($B50<=DersListesi[BİTİŞ ZAMANI]),DersListesi[BENZERSİZ]),DersListesi[BENZERSİZ],0),2),0)","v":0}]
[null,"19:45:00",{"$f":"IFERROR(INDEX(DersListesi[],MATCH(SUMPRODUCT((DersListesi[GÜN]=DersProgramı[[#Headers],[PAZAR]])*(ROUNDDOWN($B51,10)>=ROUNDDOWN(DersListesi[BAŞLANGIÇ ZAMANI],10))*($B51<=DersListesi[BİTİŞ ZAMANI]),DersListesi[BENZERSİZ]),DersListesi[BENZERSİZ],0),2),0)","v":0},{"$f":"IFERROR(INDEX(DersListesi[],MATCH(SUMPRODUCT((DersListesi[GÜN]=DersProgramı[[#Headers],[PAZARTESİ]])*(ROUNDDOWN($B51,10)>=ROUNDDOWN(DersListesi[BAŞLANGIÇ ZAMANI],10))*($B51<=DersListesi[BİTİŞ ZAMANI]),DersListesi[BENZERSİZ]),DersListesi[BENZERSİZ],0),2),0)","v":0},{"$f":"IFERROR(INDEX(DersListesi[],MATCH(SUMPRODUCT((DersListesi[GÜN]=DersProgramı[[#Headers],[SALI]])*(ROUNDDOWN($B51,10)>=ROUNDDOWN(DersListesi[BAŞLANGIÇ ZAMANI],10))*($B51<=DersListesi[BİTİŞ ZAMANI]),DersListesi[BENZERSİZ]),DersListesi[BENZERSİZ],0),2),0)","v":0},{"$f":"IFERROR(INDEX(DersListesi[],MATCH(SUMPRODUCT((DersListesi[GÜN]=DersProgramı[[#Headers],[ÇARŞAMBA]])*(ROUNDDOWN($B51,10)>=ROUNDDOWN(DersListesi[BAŞLANGIÇ ZAMANI],10))*($B51<=DersListesi[BİTİŞ ZAMANI]),DersListesi[BENZERSİZ]),DersListesi[BENZERSİZ],0),2),0)","v":0},{"$f":"IFERROR(INDEX(DersListesi[],MATCH(SUMPRODUCT((DersListesi[GÜN]=DersProgramı[[#Headers],[PERŞEMBE]])*(ROUNDDOWN($B51,10)>=ROUNDDOWN(DersListesi[BAŞLANGIÇ ZAMANI],10))*($B51<=DersListesi[BİTİŞ ZAMANI]),DersListesi[BENZERSİZ]),DersListesi[BENZERSİZ],0),2),0)","v":0},{"$f":"IFERROR(INDEX(DersListesi[],MATCH(SUMPRODUCT((DersListesi[GÜN]=DersProgramı[[#Headers],[CUMA]])*(ROUNDDOWN($B51,10)>=ROUNDDOWN(DersListesi[BAŞLANGIÇ ZAMANI],10))*($B51<=DersListesi[BİTİŞ ZAMANI]),DersListesi[BENZERSİZ]),DersListesi[BENZERSİZ],0),2),0)","v":0},{"$f":"IFERROR(INDEX(DersListesi[],MATCH(SUMPRODUCT((DersListesi[GÜN]=DersProgramı[[#Headers],[CUMARTESİ]])*(ROUNDDOWN($B51,10)>=ROUNDDOWN(DersListesi[BAŞLANGIÇ ZAMANI],10))*($B51<=DersListesi[BİTİŞ ZAMANI]),DersListesi[BENZERSİZ]),DersListesi[BENZERSİZ],0),2),0)","v":0}]
[null,"20:00:00",{"$f":"IFERROR(INDEX(DersListesi[],MATCH(SUMPRODUCT((DersListesi[GÜN]=DersProgramı[[#Headers],[PAZAR]])*(ROUNDDOWN($B52,10)>=ROUNDDOWN(DersListesi[BAŞLANGIÇ ZAMANI],10))*($B52<=DersListesi[BİTİŞ ZAMANI]),DersListesi[BENZERSİZ]),DersListesi[BENZERSİZ],0),2),0)","v":0},{"$f":"IFERROR(INDEX(DersListesi[],MATCH(SUMPRODUCT((DersListesi[GÜN]=DersProgramı[[#Headers],[PAZARTESİ]])*(ROUNDDOWN($B52,10)>=ROUNDDOWN(DersListesi[BAŞLANGIÇ ZAMANI],10))*($B52<=DersListesi[BİTİŞ ZAMANI]),DersListesi[BENZERSİZ]),DersListesi[BENZERSİZ],0),2),0)","v":0},{"$f":"IFERROR(INDEX(DersListesi[],MATCH(SUMPRODUCT((DersListesi[GÜN]=DersProgramı[[#Headers],[SALI]])*(ROUNDDOWN($B52,10)>=ROUNDDOWN(DersListesi[BAŞLANGIÇ ZAMANI],10))*($B52<=DersListesi[BİTİŞ ZAMANI]),DersListesi[BENZERSİZ]),DersListesi[BENZERSİZ],0),2),0)","v":0},{"$f":"IFERROR(INDEX(DersListesi[],MATCH(SUMPRODUCT((DersListesi[GÜN]=DersProgramı[[#Headers],[ÇARŞAMBA]])*(ROUNDDOWN($B52,10)>=ROUNDDOWN(DersListesi[BAŞLANGIÇ ZAMANI],10))*($B52<=DersListesi[BİTİŞ ZAMANI]),DersListesi[BENZERSİZ]),DersListesi[BENZERSİZ],0),2),0)","v":0},{"$f":"IFERROR(INDEX(DersListesi[],MATCH(SUMPRODUCT((DersListesi[GÜN]=DersProgramı[[#Headers],[PERŞEMBE]])*(ROUNDDOWN($B52,10)>=ROUNDDOWN(DersListesi[BAŞLANGIÇ ZAMANI],10))*($B52<=DersListesi[BİTİŞ ZAMANI]),DersListesi[BENZERSİZ]),DersListesi[BENZERSİZ],0),2),0)","v":0},{"$f":"IFERROR(INDEX(DersListesi[],MATCH(SUMPRODUCT((DersListesi[GÜN]=DersProgramı[[#Headers],[CUMA]])*(ROUNDDOWN($B52,10)>=ROUNDDOWN(DersListesi[BAŞLANGIÇ ZAMANI],10))*($B52<=DersListesi[BİTİŞ ZAMANI]),DersListesi[BENZERSİZ]),DersListesi[BENZERSİZ],0),2),0)","v":0},{"$f":"IFERROR(INDEX(DersListesi[],MATCH(SUMPRODUCT((DersListesi[GÜN]=DersProgramı[[#Headers],[CUMARTESİ]])*(ROUNDDOWN($B52,10)>=ROUNDDOWN(DersListesi[BAŞLANGIÇ ZAMANI],10))*($B52<=DersListesi[BİTİŞ ZAMANI]),DersListesi[BENZERSİZ]),DersListesi[BENZERSİZ],0),2),0)","v":0}]
[null,"20:15:00",{"$f":"IFERROR(INDEX(DersListesi[],MATCH(SUMPRODUCT((DersListesi[GÜN]=DersProgramı[[#Headers],[PAZAR]])*(ROUNDDOWN($B53,10)>=ROUNDDOWN(DersListesi[BAŞLANGIÇ ZAMANI],10))*($B53<=DersListesi[BİTİŞ ZAMANI]),DersListesi[BENZERSİZ]),DersListesi[BENZERSİZ],0),2),0)","v":0},{"$f":"IFERROR(INDEX(DersListesi[],MATCH(SUMPRODUCT((DersListesi[GÜN]=DersProgramı[[#Headers],[PAZARTESİ]])*(ROUNDDOWN($B53,10)>=ROUNDDOWN(DersListesi[BAŞLANGIÇ ZAMANI],10))*($B53<=DersListesi[BİTİŞ ZAMANI]),DersListesi[BENZERSİZ]),DersListesi[BENZERSİZ],0),2),0)","v":0},{"$f":"IFERROR(INDEX(DersListesi[],MATCH(SUMPRODUCT((DersListesi[GÜN]=DersProgramı[[#Headers],[SALI]])*(ROUNDDOWN($B53,10)>=ROUNDDOWN(DersListesi[BAŞLANGIÇ ZAMANI],10))*($B53<=DersListesi[BİTİŞ ZAMANI]),DersListesi[BENZERSİZ]),DersListesi[BENZERSİZ],0),2),0)","v":0},{"$f":"IFERROR(INDEX(DersListesi[],MATCH(SUMPRODUCT((DersListesi[GÜN]=DersProgramı[[#Headers],[ÇARŞAMBA]])*(ROUNDDOWN($B53,10)>=ROUNDDOWN(DersListesi[BAŞLANGIÇ ZAMANI],10))*($B53<=DersListesi[BİTİŞ ZAMANI]),DersListesi[BENZERSİZ]),DersListesi[BENZERSİZ],0),2),0)","v":0},{"$f":"IFERROR(INDEX(DersListesi[],MATCH(SUMPRODUCT((DersListesi[GÜN]=DersProgramı[[#Headers],[PERŞEMBE]])*(ROUNDDOWN($B53,10)>=ROUNDDOWN(DersListesi[BAŞLANGIÇ ZAMANI],10))*($B53<=DersListesi[BİTİŞ ZAMANI]),DersListesi[BENZERSİZ]),DersListesi[BENZERSİZ],0),2),0)","v":0},{"$f":"IFERROR(INDEX(DersListesi[],MATCH(SUMPRODUCT((DersListesi[GÜN]=DersProgramı[[#Headers],[CUMA]])*(ROUNDDOWN($B53,10)>=ROUNDDOWN(DersListesi[BAŞLANGIÇ ZAMANI],10))*($B53<=DersListesi[BİTİŞ ZAMANI]),DersListesi[BENZERSİZ]),DersListesi[BENZERSİZ],0),2),0)","v":0},{"$f":"IFERROR(INDEX(DersListesi[],MATCH(SUMPRODUCT((DersListesi[GÜN]=DersProgramı[[#Headers],[CUMARTESİ]])*(ROUNDDOWN($B53,10)>=ROUNDDOWN(DersListesi[BAŞLANGIÇ ZAMANI],10))*($B53<=DersListesi[BİTİŞ ZAMANI]),DersListesi[BENZERSİZ]),DersListesi[BENZERSİZ],0),2),0)","v":0}]
[null,"20:30:00",{"$f":"IFERROR(INDEX(DersListesi[],MATCH(SUMPRODUCT((DersListesi[GÜN]=DersProgramı[[#Headers],[PAZAR]])*(ROUNDDOWN($B54,10)>=ROUNDDOWN(DersListesi[BAŞLANGIÇ ZAMANI],10))*($B54<=DersListesi[BİTİŞ ZAMANI]),DersListesi[BENZERSİZ]),DersListesi[BENZERSİZ],0),2),0)","v":0},{"$f":"IFERROR(INDEX(DersListesi[],MATCH(SUMPRODUCT((DersListesi[GÜN]=DersProgramı[[#Headers],[PAZARTESİ]])*(ROUNDDOWN($B54,10)>=ROUNDDOWN(DersListesi[BAŞLANGIÇ ZAMANI],10))*($B54<=DersListesi[BİTİŞ ZAMANI]),DersListesi[BENZERSİZ]),DersListesi[BENZERSİZ],0),2),0)","v":0},{"$f":"IFERROR(INDEX(DersListesi[],MATCH(SUMPRODUCT((DersListesi[GÜN]=DersProgramı[[#Headers],[SALI]])*(ROUNDDOWN($B54,10)>=ROUNDDOWN(DersListesi[BAŞLANGIÇ ZAMANI],10))*($B54<=DersListesi[BİTİŞ ZAMANI]),DersListesi[BENZERSİZ]),DersListesi[BENZERSİZ],0),2),0)","v":0},{"$f":"IFERROR(INDEX(DersListesi[],MATCH(SUMPRODUCT((DersListesi[GÜN]=DersProgramı[[#Headers],[ÇARŞAMBA]])*(ROUNDDOWN($B54,10)>=ROUNDDOWN(DersListesi[BAŞLANGIÇ ZAMANI],10))*($B54<=DersListesi[BİTİŞ ZAMANI]),DersListesi[BENZERSİZ]),DersListesi[BENZERSİZ],0),2),0)","v":0},{"$f":"IFERROR(INDEX(DersListesi[],MATCH(SUMPRODUCT((DersListesi[GÜN]=DersProgramı[[#Headers],[PERŞEMBE]])*(ROUNDDOWN($B54,10)>=ROUNDDOWN(DersListesi[BAŞLANGIÇ ZAMANI],10))*($B54<=DersListesi[BİTİŞ ZAMANI]),DersListesi[BENZERSİZ]),DersListesi[BENZERSİZ],0),2),0)","v":0},{"$f":"IFERROR(INDEX(DersListesi[],MATCH(SUMPRODUCT((DersListesi[GÜN]=DersProgramı[[#Headers],[CUMA]])*(ROUNDDOWN($B54,10)>=ROUNDDOWN(DersListesi[BAŞLANGIÇ ZAMANI],10))*($B54<=DersListesi[BİTİŞ ZAMANI]),DersListesi[BENZERSİZ]),DersListesi[BENZERSİZ],0),2),0)","v":0},{"$f":"IFERROR(INDEX(DersListesi[],MATCH(SUMPRODUCT((DersListesi[GÜN]=DersProgramı[[#Headers],[CUMARTESİ]])*(ROUNDDOWN($B54,10)>=ROUNDDOWN(DersListesi[BAŞLANGIÇ ZAMANI],10))*($B54<=DersListesi[BİTİŞ ZAMANI]),DersListesi[BENZERSİZ]),DersListesi[BENZERSİZ],0),2),0)","v":0}]
[null,"20:45:00",{"$f":"IFERROR(INDEX(DersListesi[],MATCH(SUMPRODUCT((DersListesi[GÜN]=DersProgramı[[#Headers],[PAZAR]])*(ROUNDDOWN($B55,10)>=ROUNDDOWN(DersListesi[BAŞLANGIÇ ZAMANI],10))*($B55<=DersListesi[BİTİŞ ZAMANI]),DersListesi[BENZERSİZ]),DersListesi[BENZERSİZ],0),2),0)","v":0},{"$f":"IFERROR(INDEX(DersListesi[],MATCH(SUMPRODUCT((DersListesi[GÜN]=DersProgramı[[#Headers],[PAZARTESİ]])*(ROUNDDOWN($B55,10)>=ROUNDDOWN(DersListesi[BAŞLANGIÇ ZAMANI],10))*($B55<=DersListesi[BİTİŞ ZAMANI]),DersListesi[BENZERSİZ]),DersListesi[BENZERSİZ],0),2),0)","v":0},{"$f":"IFERROR(INDEX(DersListesi[],MATCH(SUMPRODUCT((DersListesi[GÜN]=DersProgramı[[#Headers],[SALI]])*(ROUNDDOWN($B55,10)>=ROUNDDOWN(DersListesi[BAŞLANGIÇ ZAMANI],10))*($B55<=DersListesi[BİTİŞ ZAMANI]),DersListesi[BENZERSİZ]),DersListesi[BENZERSİZ],0),2),0)","v":0},{"$f":"IFERROR(INDEX(DersListesi[],MATCH(SUMPRODUCT((DersListesi[GÜN]=DersProgramı[[#Headers],[ÇARŞAMBA]])*(ROUNDDOWN($B55,10)>=ROUNDDOWN(DersListesi[BAŞLANGIÇ ZAMANI],10))*($B55<=DersListesi[BİTİŞ ZAMANI]),DersListesi[BENZERSİZ]),DersListesi[BENZERSİZ],0),2),0)","v":0},{"$f":"IFERROR(INDEX(DersListesi[],MATCH(SUMPRODUCT((DersListesi[GÜN]=DersProgramı[[#Headers],[PERŞEMBE]])*(ROUNDDOWN($B55,10)>=ROUNDDOWN(DersListesi[BAŞLANGIÇ ZAMANI],10))*($B55<=DersListesi[BİTİŞ ZAMANI]),DersListesi[BENZERSİZ]),DersListesi[BENZERSİZ],0),2),0)","v":0},{"$f":"IFERROR(INDEX(DersListesi[],MATCH(SUMPRODUCT((DersListesi[GÜN]=DersProgramı[[#Headers],[CUMA]])*(ROUNDDOWN($B55,10)>=ROUNDDOWN(DersListesi[BAŞLANGIÇ ZAMANI],10))*($B55<=DersListesi[BİTİŞ ZAMANI]),DersListesi[BENZERSİZ]),DersListesi[BENZERSİZ],0),2),0)","v":0},{"$f":"IFERROR(INDEX(DersListesi[],MATCH(SUMPRODUCT((DersListesi[GÜN]=DersProgramı[[#Headers],[CUMARTESİ]])*(ROUNDDOWN($B55,10)>=ROUNDDOWN(DersListesi[BAŞLANGIÇ ZAMANI],10))*($B55<=DersListesi[BİTİŞ ZAMANI]),DersListesi[BENZERSİZ]),DersListesi[BENZERSİZ],0),2),0)","v":0}]
[null,"21:00:00",{"$f":"IFERROR(INDEX(DersListesi[],MATCH(SUMPRODUCT((DersListesi[GÜN]=DersProgramı[[#Headers],[PAZAR]])*(ROUNDDOWN($B56,10)>=ROUNDDOWN(DersListesi[BAŞLANGIÇ ZAMANI],10))*($B56<=DersListesi[BİTİŞ ZAMANI]),DersListesi[BENZERSİZ]),DersListesi[BENZERSİZ],0),2),0)","v":0},{"$f":"IFERROR(INDEX(DersListesi[],MATCH(SUMPRODUCT((DersListesi[GÜN]=DersProgramı[[#Headers],[PAZARTESİ]])*(ROUNDDOWN($B56,10)>=ROUNDDOWN(DersListesi[BAŞLANGIÇ ZAMANI],10))*($B56<=DersListesi[BİTİŞ ZAMANI]),DersListesi[BENZERSİZ]),DersListesi[BENZERSİZ],0),2),0)","v":0},{"$f":"IFERROR(INDEX(DersListesi[],MATCH(SUMPRODUCT((DersListesi[GÜN]=DersProgramı[[#Headers],[SALI]])*(ROUNDDOWN($B56,10)>=ROUNDDOWN(DersListesi[BAŞLANGIÇ ZAMANI],10))*($B56<=DersListesi[BİTİŞ ZAMANI]),DersListesi[BENZERSİZ]),DersListesi[BENZERSİZ],0),2),0)","v":0},{"$f":"IFERROR(INDEX(DersListesi[],MATCH(SUMPRODUCT((DersListesi[GÜN]=DersProgramı[[#Headers],[ÇARŞAMBA]])*(ROUNDDOWN($B56,10)>=ROUNDDOWN(DersListesi[BAŞLANGIÇ ZAMANI],10))*($B56<=DersListesi[BİTİŞ ZAMANI]),DersListesi[BENZERSİZ]),DersListesi[BENZERSİZ],0),2),0)","v":0},{"$f":"IFERROR(INDEX(DersListesi[],MATCH(SUMPRODUCT((DersListesi[GÜN]=DersProgramı[[#Headers],[PERŞEMBE]])*(ROUNDDOWN($B56,10)>=ROUNDDOWN(DersListesi[BAŞLANGIÇ ZAMANI],10))*($B56<=DersListesi[BİTİŞ ZAMANI]),DersListesi[BENZERSİZ]),DersListesi[BENZERSİZ],0),2),0)","v":0},{"$f":"IFERROR(INDEX(DersListesi[],MATCH(SUMPRODUCT((DersListesi[GÜN]=DersProgramı[[#Headers],[CUMA]])*(ROUNDDOWN($B56,10)>=ROUNDDOWN(DersListesi[BAŞLANGIÇ ZAMANI],10))*($B56<=DersListesi[BİTİŞ ZAMANI]),DersListesi[BENZERSİZ]),DersListesi[BENZERSİZ],0),2),0)","v":0},{"$f":"IFERROR(INDEX(DersListesi[],MATCH(SUMPRODUCT((DersListesi[GÜN]=DersProgramı[[#Headers],[CUMARTESİ]])*(ROUNDDOWN($B56,10)>=ROUNDDOWN(DersListesi[BAŞLANGIÇ ZAMANI],10))*($B56<=DersListesi[BİTİŞ ZAMANI]),DersListesi[BENZERSİZ]),DersListesi[BENZERSİZ],0),2),0)","v":0}]

{"sheet":"Ders Listesi","index":1,"n_rows":10,"n_cols":8,"rows_kept":10,"merged":[[0,1,0,5],[0,6,0,7]]}
[null,"DERS LİSTESİ",{"$nulls":4},"Ders Programı"]
[null,"DERS","Kod","GÜN","YER","BAŞLANGIÇ ZAMANI","BİTİŞ ZAMANI","BENZERSİZ"]
[null,"Teknik Yazım","YZ-121","PAZARTESİ","A Binası","13:00:00","14:00:00",{"$f":"ROW()-ROW(DersListesi[[#Headers],[BENZERSİZ]])","v":1}]
[null,"Teknik Yazım","YZ-121","ÇARŞAMBA","A Binası","13:00:00","14:00:00",{"$f":"ROW()-ROW(DersListesi[[#Headers],[BENZERSİZ]])","v":2}]
[null,"Konuşma Becerileri","KN-111","PAZARTESİ","B Binası","16:00:00","17:00:00",{"$f":"ROW()-ROW(DersListesi[[#Headers],[BENZERSİZ]])","v":3}]
[null,"Sağlık ve Fitness","SF-295","SALI","B Binası","11:00:00","12:00:00",{"$f":"ROW()-ROW(DersListesi[[#Headers],[BENZERSİZ]])","v":4}]
[null,"Sağlık ve Fitness","SF-295","PERŞEMBE","B Binası","11:00:00","12:00:00",{"$f":"ROW()-ROW(DersListesi[[#Headers],[BENZERSİZ]])","v":5}]
[null,"Geometri","MAT-113","PAZARTESİ","C Binası","08:10:00","09:15:00",{"$f":"ROW()-ROW(DersListesi[[#Headers],[BENZERSİZ]])","v":6}]
[null,"Geometri","MAT-113","ÇARŞAMBA","C Binası","08:10:00","09:15:00",{"$f":"ROW()-ROW(DersListesi[[#Headers],[BENZERSİZ]])","v":7}]
[null,"Geometri","MAT-113","CUMA","C Binası","08:10:00","09:15:00",{"$f":"ROW()-ROW(DersListesi[[#Headers],[BENZERSİZ]])","v":8}]